Workbook

Sheet Informations
A1: Bonjour | B1: Vous êtes le seul responsable des ajustements, donnez-vous une sécurité.
A3: Ce fichier est un outil pour vous aider à faire le balancement du tracteur et choisir la bonne pression des pneus.
A4: Vous entrez les données dans l'onglet Saisie des poids, la puissance, les poids et l'empattement déportance avant et arrière.
A5: Validez le tout dans schéma de tracteur et complétez les données manquantes
A6: Visualisez les différents calculs dans l'onglet Calcul tracteur caravane. | J6: Date: | K6: 2024-01-30
A7: L'onglet Rapport de tracteur est conçu pour avoir un rapport détaillé des différentes simulations.
G8: Identifiez votre club pour que le nom et l'adresse soient sur le rapport
J9: Nom du Club | K9: Votre club
A10: EXPLICATION DES ONGLETS | E10: Données physiques | J10: Adresse
A11: Dans l'onglet schéma de tracteur | E11: Données calculées | J11: Ville
A12: Les calculs se font sous l'onglet calcul tracteur caravane | E12: Données des chartes | J12: Code postal
E13: Objectif | J13: Nom du conseiller | K13: Bruno Garon, ing
J14: No de téléphone | K14: 450-779-2669
A15: Une fois les différentes données entrées vous pouvez mettre les simulations en rapport | J15: Nom de l'entreprise
A16: Cliquez sur rapport tracteur et cliquer sur la disquette | J16: Nom du producteur
A17: Revenez sur schéma tracteur et faites une nouvelle simulation et recommencez. | J17: Ville
A18: À la fin d'une simulation, cliquez sur la disquette et vous pouvez faire imprimer le rapport en faisant la mise en page qui sera différente selon vos simulations.
A19: Vous avez sur l'onglet Charge les Kg/ Hp ou Lb/Hp pour un poids idéal selon la puissance du tracteur
A20: Assurez-vous de valider le rayon sous charge, voir les chartes de pneus
A22: Conception Bruno Garon ing. MAPAQ Montérégie-Est
A23: Version | B23: =K6 -> 2024-01-30
A24: Onglet | B24: Voir plus bas
A25: Saisie des poids | B25: Pour faire la saisie et diminuer le risque d'erreur un nouvel onglet et le tout se place dans schéma tracteur Merci François Cadrin
A26: Schéma de tracteur | B26: Le reste des infos à entrer pour la simulation
A27: Calcul tracteur caravane | B27: Tous les calculs expliqués
A28: Rapport tracteur | B28: Résume les simulations ou l'ensemble des équipements poour ce tracteur
A29: Bilan des opérations | B29: Cette page donne les recommandations pour un tracteur et quelques équipements
A30: Poids puissance | B30: Calcul de la charge idéale selon l'opération sert plus avec les équipements trainés
A31: Références | B31: Ce sont plusieurs références qui ont servi à la conception de ce fichier et les chartes de plusieurs compagnies de pneus.
A32: Charges | B32: Vous donnez de l'information sur la charge à mettre sur un tracteur
A33: Balancement | B33: Vous donnez la réparation idéale du tracteur, il y a quelques variations que l'on retrouve dans les manuels d'opérateurs
B34: Les autres Onglets sont pour mon besoin personnel.
A35: Résultat-H | B35: Donne le résultat en format horizontale
A36: Compilation des données | B36: Compile toutes les données, remplissez l'onglet Schéma de tracteur et information
A37: Batteuse roue | B37: Calcul la charge pour une batteuse à roues en conception
A38: Batteuse à chenille | B38: Calcul la charge pour une batteuse à chenille en conception
W45: =W42*1.2 -> 0 | Y45: 0.2
T47: 10 | W47: 894 mm
T48: 9 | W48: 894 mm

Sheet Saisie des poids
A1: Complétez les cellules selon le poids des balances.
A2: Tracteur : | D2: Modèle
A3: Puissance | C3: HP | D3: Avant | G3: Total
A5: Vide, bas | G5: =SUM(B5:F5) -> 0 | H5: 2365
A6: Plein, haut | G6: =SUM(B6:F6) -> 0
G8: À valider
H9: m
G10: Déportance avant
H12: m
G13: Empattement
G16: À valider
G17: Déportance arrière
H18: m
A19: Vide, bas | G19: =SUM(B19:F19) -> 0 | H19: 3235
A20: Plein, haut | G20: =SUM(B20:F20) -> 0
D21: Arrière | H21: ;

Sheet schéma tracteur
P1: 1 | R1: Tracteur
C2: Puissance | D2: P | E2: ='Saisie des poids'!B3 -> 0 | G2: Hp | H2: Validez le HP PDF | R2: ='Saisie des poids'!B2 -> 0 | V2: données physiques | W2: ext | Y2: Herse
E3: =IF(E2=0,"",E2*0.746) ->  | G3: KW | T3: Pression avant gauche | AE3: typeatt | AJ3: Tracteurs | AK3: Trainé | AL3: Semi-porté | AM3: Porté
J4: Maximum | T4: Pression avant droit | AE4: 2 roues | AF4: 1 | AK4: Avant/arrière | AL4: Avant/arrière | AM4: Avant/arrière
E5: Rapport | G5: =IF(E2=0,"",'Calcul tracteur caravane'!H29) ->  | H5: Kg/HP | J5: 72.5 | T5: Pression arrière gauche | AE5: 2 + 2 | AF5: 2 | AJ5: 2 roues | AK5: 25 / 75 % | AL5: 30 / 70 % | AM5: 35 / 65%
E6: Charge/puissance | G6: =IF(E2=0,"",'Calcul tracteur caravane'!H30) ->  | H6: Lb/HP | J6: 145 | T6: Pression arrière droit | AE6: 4 roues | AF6: 3 | AJ6: 2 + 2 | AK6: 35 / 65 % | AL6: 35 / 65 % | AM6: 40 / 60 %
E7: Plein | G7: =IF(V40="","",'Calcul tracteur caravane'!J30) ->  | H7: Lb/Hp | AE7: typeatt | AG7: 1 | AH7: 2 | AI7: 3 | AJ7: 4 roues | AK7: 55 / 45 % | AL7: 55 / 45 % | AM7: 60 / 40 %
R8: Nom de l'entreprise | T8: =IF(E2=0,"",Informations!K15) ->  | W8: Données physiques | AE8: aucun | AF8: 1 | AG8: n/a | AH8: n/a | AI8: n/a
B9: Type de tracteur | C9: 2 + 2 | R9: Nom du producteur | T9: =IF(E2=0,"",Informations!K16) ->  | AE9: Portée | AF9: 2 | AG9: 65 | AH9: 60 | AI9: 40
B10: Type équipement | C10: Trainé | R10: Ville | T10: =Informations!K17 -> 0 | W10: Données calculées | AE10: semi portée | AF10: 3 | AG10: 70 | AH10: 65 | AI10: 45
R11: Essai no : | T11: 1 | AE11: Trainé | AF11: 4 | AG11: 75 | AH11: 65 | AI11: 45
B12: Description équipement | R12: Tracteur no : | T12: ='Saisie des poids'!B2 -> 0 | W12: Choix dans les chartes
R13: remarque | T13: ='Saisie des poids'!E2 -> 0 | AE13: =VLOOKUP(C9,type,2,FALSE) -> 2
R14: remarque | W14: Objectif | AE14: =VLOOKUP(C10,typeatt,2,FALSE) -> 4
D15: -2500
AE16: =INDEX(typeatt,AE14,AE13+2) -> 65
B17: Poids équipement plein | D17: e | Q17: Les poids sont en Kg | V17: Poids équipement | X17: 1250 | AA17: 45
I18: c | AA18: 6
E19: , | W19: Description de l'équipement
B20: Poids équipement à vide | D20: e1 | J20: Poids ajouté
I21: Objectif | W21: Type de roues | Y21: Simple
E22: , | J22: =AE16 -> 65 | S22: i | AF22: Simple
AF23: Double
M24: Répartition | Q24: Répartition | AF24: Triple
C25: Type de roues | E25: Simple | M25: Arrière | Q25: Avant | T25: =100-J22 -> 35
K26: Vide | L26: x | M26: =IF(P1=0,"",IF(E2=0,"",'Calcul tracteur caravane'!H27)) ->  | P26: y | Q26: =IF(P1=0,"",IF(E2=0,"",'Calcul tracteur caravane'!H28)) -> 
AF27: 22
B28: Type de pneu | K28: Plein | L28: x | M28: =IF(M34=0,"",IF(E2=0,"",'Calcul tracteur caravane'!J27)) ->  | P28: y | Q28: =IF(Q34=0,"",IF(E2=0,"",'Calcul tracteur caravane'!J28)) ->  | V28: Type de pneu | AF28: 45
B29: arrière | V29: avant | AF29: =AF27*AF28 -> 990
H30: =G31/4 ->  | J30: Poids Essieu | M30: Int | O30: ext | Q30: int | R30: ext | T30: Poids Essieu
G31: =IF(P1=0,"",IF(E2=0,"",'Calcul tracteur caravane'!H24)) ->  | I31: b | J31: =IF(P1=0,"",IF(M31=0,"",M31+M32+O31+O32)) ->  | L31: G | M31: ='Saisie des poids'!C19 -> 0 | O31: ='Saisie des poids'!B19 -> 0 | Q31: ='Saisie des poids'!C5 -> 0 | R31: ='Saisie des poids'!B5 -> 0 | T31: =IF(P1=0,"",IF(Q31=0,"",Q31+Q32+R31+R32)) ->  | V31: =IF(P1=0,"",IF(E2=0,"",'Calcul tracteur caravane'!H25)) -> 
A32: W | B32: =IF(P1=0,"",IF(E2=0,"",'Calcul tracteur caravane'!H26)) ->  | E32: Vide, bas | L32: D | M32: ='Saisie des poids'!E19 -> 0 | O32: ='Saisie des poids'!F19 -> 0 | Q32: ='Saisie des poids'!E5 -> 0 | R32: ='Saisie des poids'!F5 -> 0
J33: Poids essieu | T33: Poids essieu
B34: =IF(M34=0,"",IF(E2=0,"",'Calcul tracteur caravane'!J26)) ->  | E34: Plein Haut | G34: =IF(M34=0,"",IF(E2=0,"",'Calcul tracteur caravane'!J24)) ->  | I34: b | J34: =IF(P1=0,"",IF(M34=0,"",M34+M35+O34+O35)) ->  | M34: ='Saisie des poids'!C20 -> 0 | O34: ='Saisie des poids'!B20 -> 0 | Q34: ='Saisie des poids'!C6 -> 0 | R34: ='Saisie des poids'!B6 -> 0 | T34: =IF(P1=0,"",IF(Q34=0,"",Q34+Q35+R34+R35)) ->  | V34: =IF(P1=0,"",IF(E2=0,"",'Calcul tracteur caravane'!J25)) -> 
M35: ='Saisie des poids'!E20 -> 0 | O35: ='Saisie des poids'!F20 -> 0 | Q35: ='Saisie des poids'!E6 -> 0 | R35: ='Saisie des poids'!F6 -> 0
B36: Poids total
E37: Distance en m | F37: f | G37: ='Saisie des poids'!G18 -> 0 | N37: a | O37: ='Saisie des poids'!G12 -> 0 | U37: l | V37: ='Saisie des poids'!G9 -> 0
B40: =IF(J40="","",B34-B32) ->  | C40: =IF(B40="","",G40-T40) ->  | G40: =IF(G34="","",G34-G31) ->  | J40: =IF(J34="","",J34-J31) ->  | M40: poids de plus en arrière | R40: poids en moins | T40: =IF(V40="","",T31-T34) ->  | V40: =IF(V34="","",V31-V34) -> 
R41: en avant | AD41: =AC41-AB41 -> 0 | AE41: =AC40-AB41 -> 0
AD42: =AB42-AC42 -> 0 | AE42: =AB42-(AD42/AD41*AE41) -> 
J43: kg | K43: lb | M43: 0.34 | W43: kg | Y43: lb | AD43: =AB43-AC43 -> 0 | AE43: =AB43-(AD43/AD41*AE41) -> 
E44: Poids pneu arrière vide, bas | H44: Par | J44: =IF(P1=0,"",IF(E2=0,"",'Calcul tracteur caravane'!H35)) ->  | K44: =IF(J31="","",J44*2.2) ->  | M44: =J44/(1+M43) ->  | R44: Vide, bas Poids pneu avant | V44: Pav | W44: =IF(E2=0,"",'Calcul tracteur caravane'!H36) ->  | Z44: 0.34 | AE44: =AE43-AE42 ->  | AF44: =AA44/AE44*AE45+AA42 -> 
E45: Poids pneu arrière plein, Haut | H45: Par | J45: =IF(J40="","",IF(E2=0,"",'Calcul tracteur caravane'!J35)) ->  | K45: =IF(J34="","",J45*2.2) ->  | M45: =IF(J45="","",J45/1.34) ->  | T45: À vide | V45: Pav | W45: =IF(E2=0,"",'Calcul tracteur caravane'!I36) ->  | Y45: =IF(T31="","",W45*2.2) ->  | Z45: =W45/(1+Z44) ->  | AE45: =AC44-AE42 -> 
R46: Plein, haut Poids pneu avant | V46: Pav | W46: =IF(V40="","",'Calcul tracteur caravane'!J36) ->  | AF46: =AF44*14.5 -> 
T47: À vide | V47: Pav | W47: =IF(V40="","",'Calcul tracteur caravane'!K36) ->  | Y47: =IF(T34="","",W47*2.2) -> 
E48: Pas équilibré | M48: sans sécurité | W48: sans sécurité | AB48: 31.1
E49: Vitesse | G49: km/h | H49: 10 | J49: km/h | K49: 30 | M49: Rayon minimum | R49: Pas équilibré | T49: 10 | V49: 30 | W49: Rayon minimum | AB49: 25.4
E50: Pression en PSI arrière int | R50: pression avant Psi int | AB50: =AB48*AB49 -> 789.94
E51: Pression en PSI arrière ext | R51: pression avant Psi ext
E52: Équilibré | M52: sans sécurité | W52: sans sécurité
E53: Vitesse | G53: km/h | H53: =H49 -> 10 | J53: km/h | K53: =K49 -> 30 | M53: Rayon minimum | R53: Équilibré | T53: =T49 -> 10 | V53: =V49 -> 30 | W53: Rayon minimum
E54: Pression en PSI arrière int | R54: pression avant Psi int
E55: Pression en PSI arrière ext | R55: pression avant Psi ext
C58: Catégorie
O59: Compagnie
E60: Vide G | G60: Vide D | J60: Plein G | K60: Plein D | M60: Essieu | Q60: Pneu | R60: Indice de charge | T60: Rayon sous charge | V60: Psi
B61: Réservoir essieu 1 | M61: =J61+K61 -> 0
B63: Réservoir essieu 2 | M63: =J63+K63 -> 0
B65: Réservoir essieu 3 | M65: =J65+K65 -> 0
B67: Réservoir essieu 4 | M67: =J67+K67 -> 0
B70: Réservoir essieu total | E70: =+SUM(E61:E68) -> 0 | G70: =+SUM(G61:G68) -> 0 | J70: =+SUM(J61:J68) -> 0 | K70: =+SUM(K61:K68) -> 0 | M70: =+SUM(M61:M68) -> 0
B72: Total | C72: =IF(E61=0,"",M72-G72) ->  | G72: =+G70+E70 -> 0 | M72: =M70 -> 0
C73: Différence
B74: Liquide pour réservoir | E74: Liquide tracteur | H74: Liquide sur réservoir
E75: =B40 ->  | F75: kg | H75: =IF(E61=0,"",M72-G72) ->  | J75: =IF(E75="","",H75+E75) -> 
C76: Volume | E76: 5250 | G76: =IF(E76=0,"",E76*10/2.2) -> 23863.63636 | J76: =IF(E75="","",G76-J75) -> 
E77: gallon | G77: kg de liquide | O77: Source agri réseau
B78: Transbordeur | C78: Poids Kg/m3 | M78: A_Choisir | O78: kg/m3 | P78: 2000
B79: Maïs: | C79: =VLOOKUP(B79,Choisir,3) -> 800 | E79: Poids du grain | M79: Avoine: | N79: =P76*0.5 -> 0 | O79: 500
C80: Total | E80: Transbordeur | G80: Sur barre | J80: m3 | M80: Blé: | N80: =P75*0.84 -> 0 | O80: 840
C81: =IF(B85=0,"",E81+G81) ->  | E81: =IF(B85=0,"",M72-E712) -> 0 | G81: =B40 ->  | J81: =IF(B85=0,"",C81/C79) ->  | K81: m3 | M81: Canola: | N81: =P73*0.8 -> 0 | O81: 800
B82: Donc pas plein | J82: =IF(B85=0,"",J81*35.3) ->  | K82: pi3 | M82: Maïs: | N82: =P73*0.8 -> 0 | O82: 800
B83: si | J83: =IF(B85=0,"",J82/1.25) ->  | K83: bo | M83: Orge: | N83: =P79*0.65 -> 0 | O83: 650
B84: nb bo | C84: kg | M84: Pois: | N84: =P78*0.82 -> 1640 | O84: 820
B85: 3000 | C85: =IF(B85=0,"",B85*1.25/35.3*C79) -> 84985.83569 | M85: Sarrasin: | N85: =P75*0.67 -> 0 | O85: 670
B86: 56 | M86: Soya: | N86: =P79*0.78 -> 0 | O86: 780
B87: =B85*B86 -> 168000 | C87: =B87/2.2 -> 76363.63636

Sheet Calcul tracteur caravane
A1: Données physiques | D1: =IF('schéma tracteur'!F1="","",+'schéma tracteur'!F1) ->  | E1: Données calculées
A2: Puissance HP | B2: P | C2: =IF('schéma tracteur'!E2="","",+'schéma tracteur'!E2) -> 0 | G2: kW | H2: =IF(C2="","",+C2*0.746) -> 0
A3: Données arrière | C3: Vide | D3: Plein
A4: Empattement (m) | B4: a | C4: =IF(C2="","",+'schéma tracteur'!O37) -> 0
A5: Poids arrière (kg) | B5: b | C5: =IF(C2="","",+'schéma tracteur'!J31) ->  | D5: =IF(C2="","",+'schéma tracteur'!J34) ->  | Q5: 3000 | R5: =H14 ->  | S5: =R5/R7*100 -> 
A6: Poids roues (kg) | B6: c | C6: =IF(C2="","",+'schéma tracteur'!J18) -> 0 | D6: =IF(C2="","",+'schéma tracteur'!J18) -> 0 | H6: Vide | J6: Plein | R6: =H7 ->  | S6: =R6/R7*100 -> 
E7: Poids arrière (kg) | F7: d | G7: = b + c | H7: =IF(C2="","",+C5+C6) ->  | J7: =IF(D5="","",D5+D6) ->  | R7: =R5+R6 -> 
A8: Poids déporté (kg) | B8: e | C8: =IF(C2="","",+'schéma tracteur'!E17) -> 0
A9: déportance (m) | B9: f | C9: =IF(C2="","",+'schéma tracteur'!G37) -> 0 | S9: 35
A10: Poids déporté à vide | B10: e1 | C10: =IF(C2="","",'schéma tracteur'!E20) -> 0 | E10: Rapport arrière | F10: g | G10: = f / a | H10: =IF(C2="","",+C9/C4) ->  | J10: =H10 ->  | S10: 65
A11: Données avant | R11: =R5+Q5 ->  | S11: =R11/R13*100 -> 
A12: Poids avant (kg) | B12: h | C12: =IF(C2="","",+'schéma tracteur'!T31) ->  | D12: =IF(C2="","",+'schéma tracteur'!T34) ->  | R12: =R6 ->  | S12: =R12/R13*100 -> 
A13: Poids roues (kg) | B13: i | C13: =IF(C2="","",+'schéma tracteur'!T22) -> 0 | D13: =IF(C2="","",+'schéma tracteur'!T22) -> 0 | R13: =R11+R12 -> 
E14: Poids avant (kg) | F14: j | G14: = i +h | H14: =IF(C2="","",+C12+C13) ->  | J14: =IF(D12="","",D12+D13) -> 
A15: Poids déporté (kg) | B15: k | C15: =IF(C2="","",'schéma tracteur'!Y17) -> 0 | R15: =R5 ->  | S15: 1 | T15: 1
A16: déportance (m) | B16: l | C16: =IF(C2="","",+'schéma tracteur'!V37) -> 0 | T16: 0.35
E17: rapport avant | F17: m | G17: = l / a | H17: =IF(C2="","",+C16/C4) ->  | I17: =H20-H21 ->  | J17: =H17 -> 
E18: Calcul du poids de transfert avant et arrière | I18: à vide | K18: à vide
E19: Poids en moins sur les roues arrière (kg) | F19: q | G19: = k * m | H19: =IF(C2="","",+C15*H17) ->  | J19: =IF(C2="","",+C15*J17) -> 
E20: Poids en plus sur les roues arrière (kg) | F20: r | G20: = e + ( e * g ) | H20: =IF(C2="","",+C8+(C8*H10)) ->  | I20: =IF(C2="","",+C10+(C10*H10)) ->  | J20: =IF(C2="","",+C8+(C8*J10)) ->  | K20: =IF(C2="","",+C10+(C10*H10)) -> 
E21: Poids en moins sur les roues avant (kg) | F21: s | G21: = e * g | H21: =IF(C2="","",+C8*H10) ->  | I21: =IF(C2="","",+C10*H10) ->  | J21: =IF(C2="","",+C8*J10) ->  | K21: =IF(C2="","",+C10*H10) -> 
E22: Poids en plus sur les roues avant (kg) | F22: t | G22: = k + ( k * m ) | H22: =IF(C2="","",+C15+(C15*H17)) ->  | J22: =IF(C2="","",+C15+(C15*J17)) -> 
E23: Calcul du poids et de la répartition
E24: Poids total arrière (kg) | F24: u | G24: = d + r - q | H24: =IF(C2="","",+H7+H20-H19) ->  | I24: =IF(C2="","",+H7+I20-H19) ->  | J24: =IF(J7="","",+J7+J20-J19) ->  | K24: =IF(J7="","",+J7+K20-J19) -> 
E25: Poids total avant (kg) | F25: v | G25: = j + t - s | H25: =IF(C2="","",+H14+H22-H21) ->  | I25: =IF(C2="","",+H14+H22-I21) ->  | J25: =IF(J14="","",+J14+J22-J21) ->  | K25: =IF(J14="","",+J14+J22-K21) -> 
E26: Poids total (kg) | F26: w | G26: = u + v | H26: =IF(C2="","",+H24+H25) ->  | I26: =IF(C2="","",I24+I25) ->  | J26: =IF(J24="","",+J24+J25) ->  | K26: =IF(J24="","",K24+K25) -> 
E27: Répartition arrière | F27: x | G27: = u / w * 100 | H27: =IF(C2="","",+H24/H26*100) ->  | I27: =IF(C2="","",+I24/I26*100) ->  | J27: =IF(J24="","",+J24/J26*100) ->  | K27: =IF(J24="","",+K24/K26*100) -> 
E28: Répartition avant | F28: y | G28: = v / w * 100 | H28: =IF(C2="","",+H25/H26*100) ->  | I28: =IF(C2="","",+I25/I26*100) ->  | J28: =IF(J24="","",+J25/J26*100) ->  | K28: =IF(J24="","",+K25/K26*100) -> 
E29: Charge/puissance (kg/HP) | F29: z | G29: = w / p | H29: =IF(C2="","",+H26/C2) ->  | J29: =IF(J24="","",+J26/C2) -> 
E30: Charge/puissance (lb/HP) | F30: z1 | G30: = z * 2,2 | H30: =IF(C2="","",+H29*2.2) ->  | J30: =IF(J24="","",+J29*2.2) -> 
A31: Constante R pour calculer la charge par pneu
A32: 1) Si roue simple | C32: 2
A33: 2) Si roue double | C33: 4 / 0,88
A34: 3) Si roue triple | C34: 6 / 0,82 | E34: Calcul du poids par pneu | M34: 1
A35: Choix avant | B35: =IF(A44="simple",1,IF(A44="double",2,3)) -> 1 | E35: Poids par pneu arrière (kg) | F35: Poids arr | G35: = u / R | H35: =IF(C2="","",IF(B36=1,H24/2,IF(B36=2,H24/4/0.88,H24/6/0.82))) ->  | J35: =IF(J24="","",IF(B36=1,J24/2,IF(B36=2,J24/4/0.88,J24/6/0.82))) ->  | M35: 2
A36: Choix arrière | B36: =IF(A45="simple",1,IF(A45="double",2,3)) -> 1 | E36: Poids par pneu avant (kg) | F36: Poids avant | G36: = v / R | H36: =IF(C2="","",IF(B35=1,H25/2,IF(B35=2,H25/4/0.88,H25/6/0.82))) ->  | I36: =IF(C2="","",IF(B35=1,I25/2,IF(B35=2,I25/4/0.88,I25/6/0.82))) ->  | J36: =IF(J24="","",IF(B35=1,J25/2,IF(B35=2,J25/4/0.88,J25/6/0.82))) ->  | K36: =IF(J24="","",IF(B35=1,K25/2,IF(B35=2,K25/4/0.88,K25/6/0.82))) ->  | M36: 3
F37: Aller dans une charte avec ce poids et la vitesse d'opération pour trouver la pression du pneu
E38: Vérification dans les chartes de compagnies de la pression et du rayon minimum chargé
E39: Pression arrière psi ou kPa | F39: ='schéma tracteur'!K50 -> 0
E40: Pression avant psi ou kPa | F40: ='schéma tracteur'!V50 -> 0
A41: Page | E41: Rayon minimum chargé arrière | F41: ='schéma tracteur'!M50 -> 0
A42: ='schéma tracteur'!B51+1 -> 1 | E42: Rayon minimum chargé avant | F42: ='schéma tracteur'!W50 -> 0
A44: ='schéma tracteur'!Y21 -> Simple | B44: av
A45: ='schéma tracteur'!E25 -> Simple | B45: ar
J46: =J45*1.2 -> 0 | K46: 0.2
W48: =W45*1.2 -> 0 | Y48: 0.2
D50: 0 | H50: 10 | M50: 894 mm | T50: 10 | W50: 894 mm
H51: 9 | M51: 894 mm | R51: pression avant Psi ext | T51: 9 | W51: 894 mm
E54: Pression en PSI arrière int
E55: Pression en PSI arrière ext | R55: pression avant Psi ext
C58: Catégorie
R59: Catégorie
R60: Réservoir
O61: =SUM(E61:K62) -> 0 | R61: Citerne
R62: Vide

Sheet Résultat_H
A1: Tracteur en roue simple | N1: Ajustement vitesse km /h | P1: ='schéma tracteur'!H49 -> 10 | V1: Ajustement vitesse km/h | X1: ='schéma tracteur'!K49 -> 30 | AF1: Ajustement vitesse 10 km /h | AQ1: Ajustement vitesse 30 km/h
A2: Entreprise : | B2: =IF(Informations!$K$15=0,"",Informations!$K$15) ->  | O2: =IF('schéma tracteur'!$Y$17=0,"",'schéma tracteur'!$Y$17) ->  | W2: =IF('schéma tracteur'!$Y$17=0,"",'schéma tracteur'!$Y$17) ->  | AG2: =IF('schéma tracteur'!$Y$17=0,"",'schéma tracteur'!$Y$17) ->  | AP2: =IF(#REF!=1,"Poids avant:","") ->  | AR2: =IF('schéma tracteur'!$Y$17=0,"",'schéma tracteur'!$Y$17) -> 
A3: Producteur : | B3: =IF(Informations!$K$16=0,"",Informations!$K$16) -> 
A4: Ville : | B4: =Informations!$K$17 -> 0 | E4: =IF(P2=1,"Poids avant:","") ->  | G4: =IF('schéma tracteur'!$Y$17=0,"",'schéma tracteur'!$Y$17) ->  | N4: ='schéma tracteur'!$T$50 -> 0 | P4: =N4 -> 0 | V4: ='schéma tracteur'!$V$50 -> 0 | X4: ='schéma tracteur'!$V$50 -> 0 | AF4: ='schéma tracteur'!$T$50 -> 0 | AH4: ='schéma tracteur'!$T$50 -> 0 | AP4: =IF('schéma tracteur'!BJ21=0,"",'schéma tracteur'!BJ21) ->  | AQ4: ='schéma tracteur'!$V$50 -> 0 | AS4: ='schéma tracteur'!$V$50 -> 0 | AT4: =IF('schéma tracteur'!BJ22=0,"",'schéma tracteur'!BJ22) -> 
AD5: Répartition | AO5: Répartition
A6: Tracteur : | B6: ='Saisie des poids'!$B$2 -> 0 | E6: =IF('schéma tracteur'!$W$3=0,"",'schéma tracteur'!$W$3) ->  | F6: =IF('schéma tracteur'!$V$3=0,"",'schéma tracteur'!$V$3) ->  | H6: =IF('schéma tracteur'!$V$4=0,"",'schéma tracteur'!$V$4) ->  | I6: =IF('schéma tracteur'!$W$4=0,"",'schéma tracteur'!$W$4) ->  | J6: déportance
A7: Hp: | B7: ='Saisie des poids'!$B$3 -> 0 | E7: Répartition | J7: ='Saisie des poids'!$G$9 -> 0 | Q7: RSC | Y7: Rsc | AI7: RSC | AN7: =IF(#REF!=1,"Poids dans la roue","") ->  | AT7: RSC
A8: Pneu avant | D8: Vide/bas | E8: =ROUND('Calcul tracteur caravane'!$I$28,0) ->  | Q8: =IF('schéma tracteur'!$W$50=0,"",'schéma tracteur'!$W$50) ->  | Y8: =IF('schéma tracteur'!$W$50=0,"",'schéma tracteur'!$W$50) ->  | AI8: =IF('schéma tracteur'!$W$50=0,"",'schéma tracteur'!$W$50) ->  | AT8: =IF('schéma tracteur'!$W$50=0,"",'schéma tracteur'!$W$50) -> 
A9: ='schéma tracteur'!$W$28 -> 0 | D9: Plein/Haut | E9: ='Calcul tracteur caravane'!$J$28 ->  | I9: RSC
A10: ='schéma tracteur'!Z28 -> 0 | B10: ='schéma tracteur'!$AB$28 -> 0 | E10: =IF('schéma tracteur'!$T$22=0,"",'schéma tracteur'!$T$22) ->  | I10: ='schéma tracteur'!$V$26 -> 0 | N10: =ROUND('schéma tracteur'!$W$45,0) ->  | P10: =ROUND('schéma tracteur'!$W$45,0) ->  | U10: =IF('Saisie des poids'!$B$73=0,"",'Saisie des poids'!$B$73) ->  | V10: =ROUND('schéma tracteur'!$W$45,0) ->  | X10: =ROUND('schéma tracteur'!$W$45,0) ->  | Y10: =IF('Saisie des poids'!$F$5=0,"",'Saisie des poids'!$F$5) ->  | AF10: =ROUND('schéma tracteur'!$W$45,0) ->  | AH10: =ROUND('schéma tracteur'!$W$45,0) ->  | AI10: =IF('Saisie des poids'!$F$5=0,"",'Saisie des poids'!$F$5) ->  | AP10: =IF('Saisie des poids'!AO23=0,"",'Saisie des poids'!AO23) ->  | AQ10: =ROUND('schéma tracteur'!$W$45,0) ->  | AS10: =ROUND('schéma tracteur'!$W$45,0) ->  | AT10: =IF('Saisie des poids'!$F$5=0,"",'Saisie des poids'!$F$5) -> 
U11: =IF('Saisie des poids'!$B$74=0,"",'Saisie des poids'!$B$74) ->  | V11: =IF('Saisie des poids'!$C$74=0,"",'Saisie des poids'!$C$74) ->  | Y11: =IF('Saisie des poids'!$F$6=0,"",'Saisie des poids'!$F$6) ->  | AI11: =IF('Saisie des poids'!AD$6=0,"",'Saisie des poids'!AD$6) ->  | AP11: =IF(#REF!=0,"",#REF!) ->  | AQ11: =IF(#REF!=0,"",#REF!) ->  | AT11: =IF('Saisie des poids'!AS$6=0,"",'Saisie des poids'!AS$6) -> 
A12: =IF('schéma tracteur'!$W$29=0,"",'schéma tracteur'!$W$29) ->  | E12: =IF('Saisie des poids'!$B$5=0,"",'Saisie des poids'!$B$5) ->  | F12: ='Saisie des poids'!$C$5 -> 0 | H12: ='Saisie des poids'!$E$5 -> 0 | I12: =IF('Saisie des poids'!$F$5=0,"",'Saisie des poids'!$F$5) -> 
A13: =IF('schéma tracteur'!$Y$29=0,"",'schéma tracteur'!$Y$29) ->  | B13: =IF('schéma tracteur'!$AB$29=0,"",'schéma tracteur'!$AB$29) ->  | E13: =IF('Saisie des poids'!$B$6=0,"",'Saisie des poids'!$B$6) ->  | F13: =IF('Saisie des poids'!$C$6=0,"",'Saisie des poids'!$C$6) ->  | H13: =IF('Saisie des poids'!$E$6=0,"",'Saisie des poids'!$E$6) ->  | I13: =IF('Saisie des poids'!$F$6=0,"",'Saisie des poids'!$F$6) ->  | N13: ='schéma tracteur'!$H$50 -> 0 | P13: ='schéma tracteur'!$H$50 -> 0 | V13: ='schéma tracteur'!$K$50 -> 0 | X13: ='schéma tracteur'!$K$50 -> 0 | AE13: 9 | AF13: 9.5 | AH13: 9.5 | AI13: 9 | AP13: 9 | AQ13: 9.5 | AS13: 9.5 | AT13: 9
J14: Empattement
E15: =IF('schéma tracteur'!$W$6=0,"",'schéma tracteur'!$W$6) ->  | F15: =IF('schéma tracteur'!$V$6=0,"",'schéma tracteur'!$V$6) ->  | H15: =IF('schéma tracteur'!$V$6=0,"",'schéma tracteur'!$V$6) ->  | I15: =IF('schéma tracteur'!$W$6=0,"",'schéma tracteur'!$W$6) ->  | J15: ='Saisie des poids'!$G$12 -> 0
A16: Pneu arrière | Q16: RSC | Y16: Rsc | AJ16: RSC | AU16: RSC
A17: ='schéma tracteur'!$C$28 -> 0 | D17: Vide/bas | E17: =ROUND('Calcul tracteur caravane'!$I$27,0) ->  | Q17: =IF('schéma tracteur'!$M$50=0,"",'schéma tracteur'!$M$50) ->  | Y17: =IF('schéma tracteur'!$M$50=0,"",'schéma tracteur'!$M$50) ->  | AJ17: =IF('schéma tracteur'!$M$50=0,"",'schéma tracteur'!$M$50) ->  | AN17: =IF(#REF!=1,"Poids dans la roue","") ->  | AU17: =IF('schéma tracteur'!$M$50=0,"",'schéma tracteur'!$M$50) -> 
A18: ='schéma tracteur'!$F$28 -> 0 | B18: ='schéma tracteur'!$H$28 -> 0 | D18: Plein/Haut | E18: ='Calcul tracteur caravane'!$J$27 ->  | I18: RSC | AD18: =IF('schéma tracteur'!$T$18=0,"",'schéma tracteur'!$T$18) ->  | AO18: =IF('schéma tracteur'!$T$18=0,"",'schéma tracteur'!$T$18) -> 
E19: =IF('schéma tracteur'!$T$18=0,"",'schéma tracteur'!$T$18) ->  | I19: ='schéma tracteur'!$G$26 -> 0 | J19: déportance
A20: =IF('schéma tracteur'!C29=0,"",'schéma tracteur'!C29) ->  | J20: ='Saisie des poids'!$G$18 -> 0 | N20: =ROUND('schéma tracteur'!$J$44,0) ->  | P20: =ROUND('schéma tracteur'!$J$44,0) ->  | V20: =ROUND('schéma tracteur'!$J$44,0) ->  | X20: =ROUND('schéma tracteur'!$J$44,0) ->  | AE20: =ROUND(('schéma tracteur'!$J$44/2/0.88),0) ->  | AF20: =ROUND(('schéma tracteur'!$J$44/2/0.88),0) ->  | AH20: =ROUND(('schéma tracteur'!$J$44/2/0.88),0) ->  | AI20: =ROUND(('schéma tracteur'!$J$44/2/0.88),0) ->  | AP20: =ROUND(('schéma tracteur'!$J$45/2/0.88),0) ->  | AQ20: =ROUND(('schéma tracteur'!$J$45/2/0.88),0) ->  | AS20: =ROUND(('schéma tracteur'!$J$45/2/0.88),0) ->  | AT20: =ROUND(('schéma tracteur'!$J$45/2/0.88),0) -> 
A21: =IF('schéma tracteur'!$F$29=0,"",'schéma tracteur'!$F$29) ->  | B21: =IF('schéma tracteur'!$H$29=0,"",'schéma tracteur'!$H$29) -> 
E22: =IF('Saisie des poids'!$B$19=0,"",'Saisie des poids'!$B$19) ->  | F22: ='Saisie des poids'!$C$19 -> 0 | H22: ='Saisie des poids'!$E$19 -> 0 | I22: =IF('Saisie des poids'!$F$19=0,"",'Saisie des poids'!$F$19) -> 
E23: =IF('Saisie des poids'!$B$20=0,"",'Saisie des poids'!$B$20) ->  | F23: =IF('Saisie des poids'!$C$20=0,"",'Saisie des poids'!$C$20) ->  | H23: =IF('Saisie des poids'!$E$20=0,"",'Saisie des poids'!E$20) ->  | I23: =IF('Saisie des poids'!$F$20=0,"",'Saisie des poids'!$F$20) ->  | O23: =IF('schéma tracteur'!$E$17=0,"",'schéma tracteur'!$E$17) ->  | W23: =IF('schéma tracteur'!$E$17=0,"",'schéma tracteur'!$E$17) ->  | AG23: =IF('schéma tracteur'!$E$17=0,"",'schéma tracteur'!$E$17) ->  | AQ23: =IF(#REF!=1,"Poids arrière","") ->  | AR23: =IF('schéma tracteur'!$E$17=0,"",'schéma tracteur'!$E$17) -> 
F25: =IF(P2=1,"Poids arrière","") ->  | G25: Semoir | O25: =G25 -> Semoir | W25: =O25 -> Semoir
AB26: Voici donc les ajustements non balancés de votre tracteur, cela dans le but de | AM26: Sur la roue à 30km/h, allez voir la charte du pneu
AB27: protéger la surface en culture
A28: Pneu | AB28: Au remisage monter la pression de l'ensemble de vos pneux à plus de 20 psi.
A29: ='schéma tracteur'!$O$61 -> 0 | L29: Au remisage monter la pression de l'ensemble de vos pneux à plus de 20 psi.
A30: ='schéma tracteur'!$Q$61 -> 0 | B30: ='schéma tracteur'!$R$61 -> 0
A31: ='schéma tracteur'!$R$61 -> 0
F32: ='schéma tracteur'!$Y$3 -> 0 | H32: ='schéma tracteur'!$Y$4 -> 0
A33: Le poids arrière chargé sert à ajuster la pression arrire.
A34: Le poids avant à l'arrêt donc la machine en bas sert à ajuster la pression avant.
A35: Nous n'avons par le rayon sous charge réel, il faudrait vérifier le rayon sous charge.
A36: Il pourrait y ajouter de poids en avant pour mieux balancer le tracteur aves des roues doubles.
F37: ='schéma tracteur'!$G$61 -> 0 | H37: ='schéma tracteur'!$G$61 -> 0
F38: ='schéma tracteur'!$J$61 -> 0 | H38: ='schéma tracteur'!$K$61 -> 0
A41: Réalisé par: | B41: Bruno Garon Ing. Conseiller Santé des sols, MAPAQ, Montérégie
A44: Date : | B44: =Informations!$K$6 -> 45321
A48: Tracteur en roue simple avant et roue double arrière | S48: Ajustement vitesse km /h | U48: ='schéma tracteur'!H49 -> 10 | AD48: Ajustement vitesse km/h | AF48: ='schéma tracteur'!K49 -> 30
A49: Entreprise : | B49: =IF(Informations!$K$15=0,"",Informations!$K$15) ->  | R49: =IF(AK47=1,"Poids avant:","") ->  | T49: =IF('schéma tracteur'!$Y$17=0,"",'schéma tracteur'!$Y$17) ->  | AE49: =IF('schéma tracteur'!$Y$17=0,"",'schéma tracteur'!$Y$17) -> 
A50: Producteur : | B50: =IF(Informations!$K$16=0,"",Informations!$K$16) -> 
A51: Ville : | B51: =Informations!$K$17 -> 0 | I51: =IF('schéma tracteur'!$Y$17=0,"",'schéma tracteur'!$Y$17) ->  | R51: =IF('schéma tracteur'!AH34=0,"",'schéma tracteur'!AH34) ->  | S51: ='schéma tracteur'!$T$50 -> 0 | U51: ='schéma tracteur'!$T$50 -> 0 | V51: =IF('schéma tracteur'!AH35=0,"",'schéma tracteur'!AH35) ->  | AC51: =IF('schéma tracteur'!AW66=0,"",'schéma tracteur'!AW66) ->  | AD51: ='schéma tracteur'!$V$50 -> 0 | AF51: ='schéma tracteur'!$V$50 -> 0 | AG51: =IF('schéma tracteur'!#REF!=0,"",'schéma tracteur'!#REF!) -> 
Q52: Répartition | AB52: Répartition
A53: Tracteur : | B53: ='Saisie des poids'!$B$2 -> 0 | G53: =IF('schéma tracteur'!$W$3=0,"",'schéma tracteur'!$W$3) ->  | H53: =IF('schéma tracteur'!$V$3=0,"",'schéma tracteur'!$V$3) ->  | J53: =IF('schéma tracteur'!$V$4=0,"",'schéma tracteur'!$V$4) ->  | K53: =IF('schéma tracteur'!$W$4=0,"",'schéma tracteur'!$W$4) ->  | M53: déportance
A54: Hp: | B54: ='Saisie des poids'!$B$3 -> 0 | E54: Répartition | M54: ='Saisie des poids'!$G$9 -> 0 | P54: =IF(AK47=1,"Poids dans la roue","") ->  | V54: RSC | AG54: RSC
A55: Pneu avant | D55: Vide/bas | E55: =ROUND('Calcul tracteur caravane'!$I$28,0) ->  | V55: =IF('schéma tracteur'!$W$50=0,"",'schéma tracteur'!$W$50) ->  | AG55: =IF('schéma tracteur'!$W$50=0,"",'schéma tracteur'!$W$50) -> 
A56: ='schéma tracteur'!$W$28 -> 0 | D56: Plein/Haut | E56: ='Calcul tracteur caravane'!$J$28 ->  | K56: RSC
A57: ='schéma tracteur'!Z28 -> 0 | B57: ='schéma tracteur'!$AB$28 -> 0 | G57: =IF('schéma tracteur'!$T$22=0,"",'schéma tracteur'!$T$22) ->  | K57: ='schéma tracteur'!$V$26 -> 0 | S57: =ROUND('schéma tracteur'!$W$45,0) ->  | U57: =ROUND('schéma tracteur'!$W$45,0) ->  | V57: =IF('Saisie des poids'!$F$5=0,"",'Saisie des poids'!$F$5) ->  | AC57: =IF('Saisie des poids'!AB73=0,"",'Saisie des poids'!AB73) ->  | AD57: =ROUND('schéma tracteur'!$W$45,0) ->  | AF57: =ROUND('schéma tracteur'!$W$45,0) ->  | AG57: =IF('Saisie des poids'!$F$5=0,"",'Saisie des poids'!$F$5) -> 
V58: =IF('Saisie des poids'!Q$6=0,"",'Saisie des poids'!Q$6) ->  | AC58: =IF('Saisie des poids'!AB74=0,"",'Saisie des poids'!AB74) ->  | AD58: =IF('Saisie des poids'!AC74=0,"",'Saisie des poids'!AC74) ->  | AG58: =IF('Saisie des poids'!AF$6=0,"",'Saisie des poids'!AF$6) -> 
A59: =IF('schéma tracteur'!$W$29=0,"",'schéma tracteur'!$W$29) ->  | G59: =IF('Saisie des poids'!$B$5=0,"",'Saisie des poids'!$B$5) ->  | H59: ='Saisie des poids'!$C$5 -> 0 | J59: ='Saisie des poids'!$E$5 -> 0 | K59: =IF('Saisie des poids'!$F$5=0,"",'Saisie des poids'!$F$5) -> 
A60: =IF('schéma tracteur'!$Z$29=0,"",'schéma tracteur'!$Z$29) ->  | B60: =IF('schéma tracteur'!$AB$29=0,"",'schéma tracteur'!$AB$29) ->  | G60: =IF('Saisie des poids'!$B$6=0,"",'Saisie des poids'!$B$6) ->  | H60: =IF('Saisie des poids'!$C$6=0,"",'Saisie des poids'!$C$6) ->  | J60: =IF('Saisie des poids'!$E$6=0,"",'Saisie des poids'!$E$6) ->  | K60: =IF('Saisie des poids'!$F$6=0,"",'Saisie des poids'!$F$6) ->  | R60: ='schéma tracteur'!$H$50 -> 0 | S60: ='schéma tracteur'!$H$50+1 -> 1 | U60: ='schéma tracteur'!$H$50+1 -> 1 | V60: ='schéma tracteur'!$H$50 -> 0 | AC60: ='schéma tracteur'!$K$51 -> 0 | AD60: ='schéma tracteur'!$K$50+1 -> 1 | AF60: ='schéma tracteur'!$K$50+1 -> 1 | AG60: ='schéma tracteur'!$K$51 -> 0
M61: Empattement
G62: =IF('schéma tracteur'!$W$5=0,"",'schéma tracteur'!$W$5) ->  | H62: =IF('schéma tracteur'!$V$5=0,"",'schéma tracteur'!$V$5) ->  | J62: =IF('schéma tracteur'!$V$6=0,"",'schéma tracteur'!$V$6) ->  | K62: =IF('schéma tracteur'!$W$6=0,"",'schéma tracteur'!$W$6) ->  | M62: ='Saisie des poids'!$G$12 -> 0
A63: Pneu arrière | W63: RSC | AH63: RSC
A64: ='schéma tracteur'!$C$28 -> 0 | D64: Vide/bas | E64: =ROUND('Calcul tracteur caravane'!$I$27,0) ->  | P64: =IF(AK47=1,"Poids dans la roue","") ->  | W64: =IF('schéma tracteur'!$M$50=0,"",'schéma tracteur'!$M$50) ->  | AH64: =IF('schéma tracteur'!$M$50=0,"",'schéma tracteur'!$M$50) -> 
A65: ='schéma tracteur'!$F$28 -> 0 | B65: ='schéma tracteur'!$H$28 -> 0 | D65: Plein/Haut | E65: ='Calcul tracteur caravane'!$J$27 ->  | L65: RSC | Q65: =IF('schéma tracteur'!$T$18=0,"",'schéma tracteur'!$T$18) ->  | AB65: =IF('schéma tracteur'!$T$18=0,"",'schéma tracteur'!$T$18) -> 
F66: =IF('schéma tracteur'!$T$18=0,"",'schéma tracteur'!$T$18) ->  | L66: ='schéma tracteur'!$G$26 -> 0 | M66: déportance
A67: =IF('schéma tracteur'!$C$29=0,"",'schéma tracteur'!$C$29) ->  | M67: ='Saisie des poids'!$G$18 -> 0 | R67: =ROUND('schéma tracteur'!$J$45,0) ->  | S67: ='schéma tracteur'!$J$45 ->  | U67: ='schéma tracteur'!$J$45 ->  | V67: ='schéma tracteur'!$J$45 ->  | AC67: ='schéma tracteur'!$J$45 ->  | AD67: ='schéma tracteur'!$J$45 ->  | AF67: ='schéma tracteur'!$J$45 ->  | AG67: ='schéma tracteur'!$J$45 -> 
A68: =IF('schéma tracteur'!$F$29=0,"",'schéma tracteur'!$F$29) ->  | B68: ='schéma tracteur'!$H$28 -> 0
G69: =IF('Saisie des poids'!$B$19=0,"",'Saisie des poids'!$B$19) ->  | H69: ='Saisie des poids'!$C$19 -> 0 | J69: ='Saisie des poids'!$E$19 -> 0 | K69: =IF('Saisie des poids'!$F$19=0,"",'Saisie des poids'!$F$19) -> 
G70: =IF('Saisie des poids'!$B$20=0,"",'Saisie des poids'!$B$20) ->  | H70: =IF('Saisie des poids'!$C$20=0,"",'Saisie des poids'!$C$20) ->  | J70: =IF('Saisie des poids'!$E$20=0,"",'Saisie des poids'!$E$20) ->  | K70: =IF('Saisie des poids'!$F$20=0,"",'Saisie des poids'!$F$20) ->  | S70: =IF(AK47=1,"Poids arrière","") ->  | T70: =IF('schéma tracteur'!$E$17=0,"",'schéma tracteur'!$E$17) ->  | AD70: =IF(#REF!=1,"Poids arrière","") ->  | AE70: =IF('schéma tracteur'!$E$17=0,"",'schéma tracteur'!$E$17) -> 
T71: =I73 -> Semoir | AE71: =T71 -> Semoir
I72: =IF('schéma tracteur'!$E$17=0,"",'schéma tracteur'!$E$17) -> 
I73: Semoir | O73: Voici donc les ajustements non balancés de votre tracteur, cela dans le but de | Z73: Sur la roue à 50km/h
O74: protéger la surface en culture
A75: Pneu | O75: Au remisage monter la pression de l'ensemble de vos pneux à plus de 20 psi.
A76: ='schéma tracteur'!$O$61 -> 0
A77: ='schéma tracteur'!$Q$61 -> 0 | B77: ='schéma tracteur'!$R$61 -> 0
A78: Le poids arrière chargé sert à ajuster la pression arrière
A79: Le poids avant à l'arrêt donc la machine en bas sert à ajuster la pression avant.
A80: Il faudrait ajouter du poids en avant, il serait préféreble de mettre des roues double en avant.
H84: ='schéma tracteur'!$G$61 -> 0 | J84: ='schéma tracteur'!$G$61 -> 0
H85: ='schéma tracteur'!$J$61 -> 0 | J85: ='schéma tracteur'!$K$61 -> 0
A87: =$A$41 -> Réalisé par: | B87: =$B$41 -> Bruno Garon Ing. Conseiller Santé des sols, MAPAQ, Montérégie
B88: =IF($B$42=0,"",$B$42) -> 
B89: =IF($B$42=0,"",$B$42) -> 
A90: =$A$44 -> Date : | B90: =Informations!$K$6 -> 45321
A95: Tracteur en roue double avant et arrière | Q95: Ajustement à km/h | S95: ='schéma tracteur'!H49 -> 10 | AB95: Ajustement à km/h | AD95: ='schéma tracteur'!K49 -> 30
A96: Entreprise : | B96: =IF(Informations!$K$15=0,"",Informations!$K$15) ->  | R96: =IF(AK94=1,"Poids avant:","") ->  | T96: =IF('schéma tracteur'!$Y$17=0,"",'schéma tracteur'!$Y$17) ->  | AC96: =IF(AK131=1,"Poids avant:","") ->  | AE96: =IF('schéma tracteur'!$Y$17=0,"",'schéma tracteur'!$Y$17) -> 
A97: Producteur : | B97: =IF(Informations!$K$16=0,"",Informations!$K$16) -> 
A98: Ville : | B98: =Informations!$K$17 -> 0 | I98: =IF('schéma tracteur'!$Y$17=0,"",'schéma tracteur'!$Y$17) ->  | R98: ='schéma tracteur'!$T$51 -> 0 | S98: ='schéma tracteur'!$T$50 -> 0 | U98: ='schéma tracteur'!$T$50 -> 0 | V98: ='schéma tracteur'!$T$51 -> 0 | AC98: ='schéma tracteur'!$V$51 -> 0 | AD98: ='schéma tracteur'!$V$50 -> 0 | AF98: ='schéma tracteur'!$V$50 -> 0 | AG98: ='schéma tracteur'!$V$51 -> 0
P99: Répartition | AA99: Répartition
A100: Tracteur : | B100: ='Saisie des poids'!$B$2 -> 0 | G100: =IF('schéma tracteur'!$W$3=0,"",'schéma tracteur'!$W$3) ->  | H100: =IF('schéma tracteur'!$V$3=0,"",'schéma tracteur'!$V$3) ->  | J100: =IF('schéma tracteur'!$V$4=0,"",'schéma tracteur'!$V$4) ->  | K100: =IF('schéma tracteur'!$W$4=0,"",'schéma tracteur'!$W$4) ->  | M100: déportance
A101: Hp: | B101: ='Saisie des poids'!$B$3 -> 0 | E101: Répartition | M101: ='Saisie des poids'!$G$9 -> 0 | P101: =IF(AK94=1,"Poids dans la roue","") ->  | W101: RSC | AA101: =IF(AK131=1,"Poids dans la roue","") ->  | AH101: RSC
A102: Pneu avant | D102: Vide/bas | E102: =ROUND('Calcul tracteur caravane'!$I$28,0) ->  | W102: ='schéma tracteur'!$W$50 -> 0 | AH102: =$W$102 -> 0
A103: ='schéma tracteur'!$W$28 -> 0 | D103: Plein/Haut | E103: ='Calcul tracteur caravane'!$J$28 ->  | L103: RSC
A104: ='schéma tracteur'!Z28 -> 0 | B104: ='schéma tracteur'!$AB$28 -> 0 | F104: =IF('schéma tracteur'!$T$22=0,"",'schéma tracteur'!$T$22) ->  | L104: ='schéma tracteur'!$V$26 -> 0 | R104: =ROUND('schéma tracteur'!$W$45,0) ->  | S104: =ROUND('schéma tracteur'!$W$45,0) ->  | U104: =ROUND('schéma tracteur'!$W$45,0) ->  | V104: =ROUND('schéma tracteur'!$W$45,0) ->  | AC104: =ROUND('schéma tracteur'!$W$45,0) ->  | AD104: =ROUND('schéma tracteur'!$W$45,0) ->  | AF104: =ROUND('schéma tracteur'!$W$45,0) ->  | AG104: =ROUND('schéma tracteur'!$W$45,0) -> 
R105: =IF('Saisie des poids'!J87=0,"",'Saisie des poids'!J87) ->  | S105: =IF('Saisie des poids'!K87=0,"",'Saisie des poids'!K87) ->  | V105: =IF('Saisie des poids'!N$6=0,"",'Saisie des poids'!N$6) ->  | AC105: =IF('Saisie des poids'!J124=0,"",'Saisie des poids'!J124) ->  | AD105: =IF('Saisie des poids'!K124=0,"",'Saisie des poids'!K124) ->  | AG105: =IF('Saisie des poids'!N$6=0,"",'Saisie des poids'!N$6) -> 
A106: =IF('schéma tracteur'!$W$29=0,"",'schéma tracteur'!$W$29) ->  | G106: =IF('Saisie des poids'!$B$5=0,"",'Saisie des poids'!$B$5) ->  | H106: ='Saisie des poids'!$C$5 -> 0 | J106: ='Saisie des poids'!$E$5 -> 0 | K106: =IF('Saisie des poids'!$F$5=0,"",'Saisie des poids'!$F$5) -> 
A107: =IF('schéma tracteur'!$Z$29=0,"",'schéma tracteur'!$Z$29) ->  | B107: =IF('schéma tracteur'!$AB$29=0,"",'schéma tracteur'!$AB$29) ->  | G107: =IF('Saisie des poids'!$B$6=0,"",'Saisie des poids'!$B$6) ->  | H107: =IF('Saisie des poids'!$C$6=0,"",'Saisie des poids'!$C$6) ->  | J107: =IF('Saisie des poids'!$E$6=0,"",'Saisie des poids'!$E$6) ->  | K107: =IF('Saisie des poids'!$F$6=0,"",'Saisie des poids'!$F$6) ->  | R107: ='schéma tracteur'!$H$51 -> 0 | S107: ='schéma tracteur'!$H$50 -> 0 | U107: ='schéma tracteur'!$H$50 -> 0 | V107: ='schéma tracteur'!$H$51 -> 0 | AC107: ='schéma tracteur'!$K$51 -> 0 | AD107: ='schéma tracteur'!$K$50 -> 0 | AF107: ='schéma tracteur'!$K$50 -> 0 | AG107: ='schéma tracteur'!$K$51 -> 0
M108: Empattement
G109: =IF('schéma tracteur'!$W$5=0,"",'schéma tracteur'!$W$5) ->  | H109: =IF('schéma tracteur'!$V$5=0,"",'schéma tracteur'!$V$5) ->  | J109: =IF('schéma tracteur'!$V$6=0,"",'schéma tracteur'!$V$6) ->  | K109: =IF('schéma tracteur'!$W$6=0,"",'schéma tracteur'!$W$6) ->  | M109: ='Saisie des poids'!$G$12 -> 0
A110: Pneu arrière
A111: ='schéma tracteur'!$C$28 -> 0 | D111: Vide/bas | E111: =ROUND('Calcul tracteur caravane'!$I$27,0) ->  | P111: =IF(AK94=1,"Poids dans la roue","") ->  | W111: RSC | AA111: =IF(AK131=1,"Poids dans la roue","") ->  | AH111: RSC
A112: ='schéma tracteur'!$F$28 -> 0 | B112: ='schéma tracteur'!$H$28 -> 0 | D112: Plein/Haut | E112: ='Calcul tracteur caravane'!$J$27 ->  | L112: RSC | P112: =IF('schéma tracteur'!$T$18=0,"",'schéma tracteur'!$T$18) ->  | W112: ='schéma tracteur'!$M$50 -> 0 | AA112: =IF('schéma tracteur'!$T$18=0,"",'schéma tracteur'!$T$18) ->  | AH112: =$W$112 -> 0
F113: =IF('schéma tracteur'!$T$18=0,"",'schéma tracteur'!$T$18) ->  | L113: ='schéma tracteur'!$G$26 -> 0 | M113: déportance
A114: =IF('schéma tracteur'!$C$29=0,"",'schéma tracteur'!$C$29) ->  | M114: ='Saisie des poids'!$G$18 -> 0 | R114: =ROUND('schéma tracteur'!$J$44,0) ->  | S114: =ROUND('schéma tracteur'!$J$44,0) ->  | U114: =ROUND('schéma tracteur'!$J$44,0) ->  | V114: =ROUND('schéma tracteur'!$J$44,0) ->  | AC114: =ROUND('schéma tracteur'!$J$44,0) ->  | AD114: =ROUND('schéma tracteur'!$J$44,0) ->  | AF114: =ROUND('schéma tracteur'!$J$44,0) ->  | AG114: =ROUND('schéma tracteur'!$J$44,0) -> 
A115: =IF('schéma tracteur'!$F$29=0,"",'schéma tracteur'!$F$29) ->  | B115: ='schéma tracteur'!$H$28 -> 0
G116: =IF('Saisie des poids'!$B$19=0,"",'Saisie des poids'!$B$19) ->  | H116: ='Saisie des poids'!$C$19 -> 0 | J116: ='Saisie des poids'!$E$19 -> 0 | K116: =IF('Saisie des poids'!$F$19=0,"",'Saisie des poids'!$F$19) -> 
G117: =IF('Saisie des poids'!$B$20=0,"",'Saisie des poids'!$B$20) ->  | H117: =IF('Saisie des poids'!$C$20=0,"",'Saisie des poids'!$C$20) ->  | J117: =IF('Saisie des poids'!$E$20=0,"",'Saisie des poids'!$E$20) ->  | K117: =IF('Saisie des poids'!$F$20=0,"",'Saisie des poids'!$F$20) ->  | S117: =IF(AK94=1,"Poids arrière","") ->  | T117: =IF('schéma tracteur'!$E$17=0,"",'schéma tracteur'!$E$17) ->  | AD117: =IF(AK131=1,"Poids arrière","") ->  | AE117: =IF('schéma tracteur'!$E$17=0,"",'schéma tracteur'!$E$17) -> 
I119: semoir | T119: =I119 -> semoir
A122: Pneu
A123: ='schéma tracteur'!$O$61 -> 0
A124: ='schéma tracteur'!$Q$61 -> 0 | B124: ='schéma tracteur'!$R$61 -> 0
H131: ='schéma tracteur'!$G$61 -> 0 | J131: ='schéma tracteur'!$G$61 -> 0
H132: ='schéma tracteur'!$J$61 -> 0 | J132: ='schéma tracteur'!$K$61 -> 0
A135: =$A$41 -> Réalisé par: | B135: =$B$41 -> Bruno Garon Ing. Conseiller Santé des sols, MAPAQ, Montérégie
B136: =IF($B$42=0,"",$B$42) -> 
B137: =IF($B$42=0,"",$B$42) -> 
A138: =$A$44 -> Date : | B138: =Informations!$K$6 -> 45321

Sheet Rapport_tracteur
A1: Nom du Club | B1: =Informations!K9 -> Votre club | H1: Nom de l'entreprise | I1: ='schéma tracteur'!T8 -> 
A2: Adresse | B2: =Informations!K10 -> 0 | H2: Nom du producteur | I2: ='schéma tracteur'!T9 -> 
A3: Ville | B3: =Informations!K11 -> 0 | H3: Ville | I3: ='schéma tracteur'!T10 -> 0
A4: Code Postal | B4: =Informations!K12 -> 0
A5: Nom du conseiller | B5: =Informations!K13 -> Bruno Garon, ing
A6: No de téléphone | B6: =Informations!K14 -> 450-779-2669 | J6: Cliquez sur la disquette pour placer les données dans le tableau
H7: ='schéma tracteur'!R2 -> 0 | I7: Type | J7: ='schéma tracteur'!C9 -> 2 + 2 | K7: si vous avez une erreur ou voulez effacer un essai, allez à la ligne 20 de l'essai, sélectionne le reste de la colonne jusqu'en bas, faites supprimer
G8: Puissance PDF | H8: Hp | I8: ='schéma tracteur'!$E$2 -> 0
G9: Puissance PDF | H9: KW | I9: =I8*0.746 -> 0
I10: Ext | J10: Int | K10: Int | L10: Ext
G11: Avant | H11: Psi | I11: ='schéma tracteur'!$W$3 -> 0 | J11: ='schéma tracteur'!$V$3 -> 0 | K11: ='schéma tracteur'!$V$4 -> 0 | L11: ='schéma tracteur'!$W$4 -> 0
G12: Arrière | H12: Psi | I12: ='schéma tracteur'!$W$5 -> 0 | J12: ='schéma tracteur'!$V$5 -> 0 | K12: ='schéma tracteur'!$V$6 -> 0 | L12: ='schéma tracteur'!$W$6 -> 0
G13: Pneu | I13: Compagnie, grandeur | J13: indice de charge | K13: Rayon sous charge
G14: Avant | H14: Int | I14: ='schéma tracteur'!$W$28 -> 0 | J14: ='schéma tracteur'!$AB$28 -> 0 | K14: ='schéma tracteur'!$W$50 -> 0
G15: Avant | H15: Ext | I15: ='schéma tracteur'!W29 -> 0 | J15: ='schéma tracteur'!$AB$29 -> 0 | K15: ='schéma tracteur'!$W$51 -> 0
G16: Arrière | H16: Int | I16: ='schéma tracteur'!$C$28 -> 0 | J16: ='schéma tracteur'!$H$28 -> 0 | K16: ='schéma tracteur'!$M$50 -> 0
G17: Arrière | H17: Ext | I17: ='schéma tracteur'!$C$29 -> 0 | J17: ='schéma tracteur'!$H$29 -> 0 | K17: ='schéma tracteur'!$M$51 -> 0
D19: Vide | E19: a | G19: b | H19: 1 | I19: =H19+1 -> 2 | J19: =I19+1 -> 3 | K19: 4 | L19: 5 | M19: 6 | N19: 7 | O19: 8 | P19: 9 | Q19: 10 | R19: 11 | S19: 12 | T19: 13 | U19: 14 | V19: 15 | W19: 16 | X19: 17
A20: Essai no : | C20: ='schéma tracteur'!$T$11 -> 1 | D20: xxx | E20: 2 | F20: xxx | G20: Essai no :
A21: Tracteur no : | C21: ='schéma tracteur'!$T$12 -> 0 | D21: xxx | E21: =E20+1 -> 3 | F21: xxx | G21: Tracteur no :
A22: Remarque | C22: ='schéma tracteur'!$T$13 -> 0 | D22: xxx | E22: =E21+1 -> 4 | F22: xxx | G22: Remarque
A23: Remarque | C23: ='schéma tracteur'!$T$14 -> 0 | D23: xxx | E23: 5 | F23: xxx | G23: Remarque
A24: Type de roues avant | C24: ='schéma tracteur'!$Y$21 -> Simple | D24: xxx | E24: 6 | G24: Type de roues avant
A25: Type de roues arrière | C25: ='schéma tracteur'!$E$25 -> Simple | D25: xxx | E25: 7 | G25: Type de roues arrière
A26: Catégorie de l'équipement | C26: ='schéma tracteur'!$C$10 -> Trainé | D26: xxx | E26: 8 | G26: Catégorie de l'équipement
A27: Empattement | B27: m | C27: ='schéma tracteur'!$O$37 -> 0 | D27: xxx | E27: 9 | F27: m | G27: Empattement
A28: déportance avant | B28: m | C28: ='schéma tracteur'!$V$37 -> 0 | D28: xxx | E28: 10 | F28: m | G28: déportance avant
A29: déportance arrière | B29: m | C29: ='schéma tracteur'!$G$37 -> 0 | D29: xxx | E29: 11 | F29: m | G29: déportance arrière
A30: Équipement arrière | B30: m | C30: ='schéma tracteur'!$C$12 -> 0 | D30: xxx | E30: 12 | F30: m | G30: Équipement arrière
A31: Poids équipement | B31: kg | C31: ='schéma tracteur'!$E$17 -> 0 | D31: xxx | E31: 13 | F31: kg | G31: Poids équipement
A32: Poids équipement à vide | B32: kg | C32: ='schéma tracteur'!$E$20 -> 0 | D32: xxx | E32: 14 | F32: kg | G32: Poids équipement à vide
A33: poids roues arrière | B33: kg | C33: ='schéma tracteur'!$J$18 -> 0 | D33: xxx | E33: 15 | F33: kg | G33: poids roues arrière
A34: Poids essieu arrière vide | B34: kg | C34: ='schéma tracteur'!$J$31 ->  | D34: xxx | E34: 16 | F34: kg | G34: Poids essieu arrière vide
A35: Poids total arrière vide | B35: kg | C35: ='schéma tracteur'!$G$31 ->  | D35: xxx | E35: 17 | F35: kg | G35: Poids total arrière vide
A36: Poids essieu arrière plein | B36: kg | C36: ='schéma tracteur'!$J$34 ->  | D36: xxx | E36: 18 | F36: kg | G36: Poids essieu arrière plein
A37: Poids total arrière plein | B37: kg | C37: ='schéma tracteur'!$G$34 ->  | D37: xxx | E37: 19 | F37: kg | G37: Poids total arrière plein
A38: Répartition arrière vide | B38: % | C38: =ROUND('schéma tracteur'!$M$26:$M$26,1) ->  | D38: xxx | E38: 20 | F38: % | G38: Répartition arrière vide
A39: Répartition arrière plein | B39: % | C39: ='schéma tracteur'!$M$28 ->  | D39: xxx | E39: 21 | F39: % | G39: Répartition arrière plein
A40: Équipement avant | C40: ='schéma tracteur'!$Y$19 -> 0 | D40: xxx | E40: 22 | G40: Équipement avant
A41: Poids équipement | B41: Kg | C41: ='schéma tracteur'!$Y$17 -> 0 | D41: xxx | E41: 23 | F41: Kg | G41: Poids équipement
A42: Poids Roue avant | B42: kg | C42: ='schéma tracteur'!$T$22 -> 0 | D42: xxx | E42: 24 | F42: kg | G42: Poids Roue avant
A43: Poids essieu avant vide | B43: kg | C43: ='schéma tracteur'!$T$31 ->  | D43: xxx | E43: 25 | F43: kg | G43: Poids essieu avant vide
A44: Poids total avant vide | B44: kg | C44: ='schéma tracteur'!$V$31 ->  | D44: xxx | E44: 26 | F44: kg | G44: Poids total avant vide
A45: Poids essieu avant plein | B45: kg | C45: ='schéma tracteur'!$T$34 ->  | D45: xxx | E45: 27 | F45: kg | G45: Poids essieu avant plein
A46: Poids total avant plein | B46: kg | C46: ='schéma tracteur'!$V$34 ->  | D46: xxx | E46: 28 | F46: kg | G46: Poids total avant plein
A47: Répartition avant vide | B47: % | C47: =ROUND('schéma tracteur'!$Q$26,1) ->  | D47: xxx | E47: 29 | F47: % | G47: Répartition avant vide
A48: Répartition avant plein | C48: ='schéma tracteur'!$Q$28 ->  | D48: xxx | E48: 30 | G48: Répartition avant plein
A49: Poids total vide | B49: kg | C49: ='schéma tracteur'!$B$32 ->  | D49: xxx | E49: 31 | F49: kg | G49: Poids total vide
A50: Poids total plein | B50: kg | C50: ='schéma tracteur'!$B$34 ->  | E50: 32 | F50: kg | G50: Poids total plein
A51: Pneu arrière | B51: xxx | C51: xxxxxxxxxxxxxxx | D51: xxx | E51: 33 | F51: xxx | G51: Pneu arrière
A52: Vitesse | B52: Km/h | C52: ='schéma tracteur'!$H$49 -> 10 | D52: xxx | E52: 34 | F52: Km/h | G52: Vitesse
A53: Poids Pneu arrière vide | B53: Kg | C53: ='schéma tracteur'!$J$44 ->  | D53: xxx | E53: 35 | F53: Kg | G53: Poids Pneu arrière vide
A54: Pression arrière int. Vide | B54: Psi | C54: ='schéma tracteur'!$H$50 -> 0 | D54: xxx | E54: 36 | F54: PSI | G54: Pression arrière int. Vide
A55: Pression arrière ext.vide | B55: Psi | C55: ='schéma tracteur'!$H$51 -> 0 | D55: xxx | E55: 37 | F55: Psi | G55: Pression arrière ext.vide
A56: Vitesse | B56: Km/h | C56: ='schéma tracteur'!$K$49 -> 30 | D56: xxx | E56: 38 | F56: Km/h | G56: Vitesse
A57: Pression arrière int. vide | B57: Psi | C57: ='schéma tracteur'!$K$50 -> 0 | D57: xxx | E57: 39 | F57: Psi | G57: Pression arrière int. vide
A58: Pression arrière ext. Vide | B58: Psi | C58: ='schéma tracteur'!$K$51 -> 0 | D58: xxx | E58: 40 | F58: Psi | G58: Pression arrière ext. Vide
A59: Poids Pneu arrière plein | B59: kg | C59: ='schéma tracteur'!$J$45 ->  | D59: xxx | E59: 41 | F59: kg | G59: Poids Pneu arrière plein
A60: Vitesse plein | B60: Km/h | C60: ='schéma tracteur'!$H$53 -> 10 | D60: xxx | E60: 42 | F60: Km/h | G60: Vitesse plein
A61: Pression arrière int. Plein | B61: Psi | C61: ='schéma tracteur'!$H$54 -> 0 | D61: xxx | E61: 43 | F61: Psi | G61: Pression arrière int. Plein
A62: Pression arrière ext.plein | B62: Psi | C62: ='schéma tracteur'!$H$55 -> 0 | D62: xxx | E62: 44 | F62: Psi | G62: Pression arrière ext.plein
A63: Vitesse | B63: Km/h | C63: ='schéma tracteur'!$K$53 -> 30 | D63: xxx | E63: 45 | F63: Km/h | G63: Vitesse
A64: Pression arrière int.plein | B64: PSI | C64: ='schéma tracteur'!$K$54 -> 0 | D64: xxx | E64: 46 | F64: PSI | G64: Pression arrière int.plein
A65: Pression arrière ext. Plein | B65: Psi | C65: ='schéma tracteur'!$K$55 -> 0 | D65: xxx | E65: 47 | F65: Psi | G65: Pression arrière ext. Plein
A66: Pneu avant | C66: xxxxxxxxxxxxxxx | D66: xxx | E66: 48 | G66: Pneu avant
A67: Poids Pneu avant | B67: Kg | C67: ='schéma tracteur'!$W$44 ->  | D67: xxx | E67: 49 | F67: Kg | G67: Poids Pneu avant
A68: poids pneu équipement vide | B68: Kg | C68: ='schéma tracteur'!$W$45 ->  | E68: 50 | F68: Kg | G68: poids pneu équipement vide
A69: Vitesse vide | B69: Km/h | C69: ='schéma tracteur'!$T$49 -> 10 | D69: xxx | E69: 51 | F69: Km/h | G69: Vitesse vide
A70: Pression avant int. Vide | B70: Psi | C70: ='schéma tracteur'!$T$50 -> 0 | D70: xxx | E70: 52 | F70: Psi | G70: Pression avant int. Vide
A71: Pression avant ext. Vide | B71: Psi | C71: ='schéma tracteur'!$T$51 -> 0 | D71: xxx | E71: 53 | F71: Psi | G71: Pression avant ext. Vide
A72: Vitesse | B72: Km/h | C72: ='schéma tracteur'!$V$49 -> 30 | D72: xxx | E72: 54 | F72: Km/h | G72: Vitesse
A73: Pression avant int. Vide | B73: Psi | C73: ='schéma tracteur'!$V$50 -> 0 | D73: xxx | E73: 55 | F73: Psi | G73: Pression avant int. Vide
A74: Pression avant ext. Vide | B74: Psi | C74: ='schéma tracteur'!$V$51 -> 0 | D74: xxx | E74: 56 | F74: Psi | G74: Pression avant ext. Vide
A75: Vitesse plein | B75: Km/h | C75: ='schéma tracteur'!$T$53 -> 10 | D75: xxx | E75: 57 | F75: Km/h | G75: Vitesse plein
A76: Pression avant int. Plein | B76: Psi | C76: ='schéma tracteur'!$T$54 -> 0 | E76: 58 | F76: Psi | G76: Pression avant int. Plein
A77: Pression avant ext. Plein | B77: Psi | C77: ='schéma tracteur'!$T$55 -> 0 | D77: xxx | E77: 59 | F77: Psi | G77: Pression avant ext. Plein
A78: Vitesse | B78: Km/h | C78: ='schéma tracteur'!$V$53 -> 30 | D78: xxx | E78: 60 | F78: Km/h | G78: Vitesse
A79: Pression avant int. plein | B79: Psi | C79: ='schéma tracteur'!$V$54 -> 0 | D79: xxx | E79: 61 | F79: Psi | G79: Pression avant int. plein
A80: Pression avant ext. plein | B80: Psi | C80: ='schéma tracteur'!$V$55 -> 0 | D80: xxx | E80: 62 | F80: Psi | G80: Pression avant ext. plein
A81: Rapport de charge | B81: Lb/Hp | C81: =ROUND('schéma tracteur'!$G$6,1) ->  | D81: xxx | E81: 63 | F81: Lb/Hp | G81: Rapport de charge
A82: Rapport de charge | B82: Kg/HP | C82: =ROUND('schéma tracteur'!$G$5,1) ->  | D82: xxx | E82: 64 | F82: Kg/HP | G82: Rapport de charge
A83: Conception Bruno Garon ing. Montérégie Est
A84: ne pas oublier qu'au remisage pour l'hiver de remonter les pressions en haut de 20 psi et enlevez toute charge inutile

Sheet bilan des opérations
A1: Fiche d'ajustement des pressions par tracteur et machine
A2: Tracteur | B2: ='schéma tracteur'!R2 -> 0 | C2: ='schéma tracteur'!E2 -> 0 | D2: =ROUND('schéma tracteur'!E3,1) -> 
A3: Pneu | C3: Compagnie, grandeur | D3: indice de charge | E3: Rayon sous charge
A4: Avant | B4: Int | C4: =Rapport_tracteur!I14 -> 0 | D4: =Rapport_tracteur!J14 -> 0 | E4: =Rapport_tracteur!K14 -> 0
A5: Avant | B5: Ext | C5: =Rapport_tracteur!I15 -> 0 | D5: =Rapport_tracteur!J15 -> 0 | E5: =Rapport_tracteur!K15 -> 0
A6: Arrière | B6: Int | C6: =Rapport_tracteur!I16 -> 0 | D6: =Rapport_tracteur!J16 -> 0 | E6: =Rapport_tracteur!K16 -> 0
A7: Arrière | B7: Ext | C7: =Rapport_tracteur!I17 -> 0 | D7: =Rapport_tracteur!J17 -> 0 | E7: =Rapport_tracteur!K17 -> 0
A8: Équipement | B8: 1
A9: Remarque | B9: =INDEX(tabdon,4,3+B8) -> 0 | C9: Remarque | D9: =INDEX(tabdon,5,3+B8) -> 0 | E9: Poids puissance | F9: =INDEX(tabdon,63,3+B8) -> 0
A10: Type de roue avant | B10: g | C10: Type de roue arrière | D10: =INDEX(tabdon,7,3+B8) -> 0 | E10: Poids puissance | F10: =INDEX(tabdon,64,3+B8) -> 0
A11: Poids ajouté av: | B11: =Rapport_tracteur!H41 -> 0 | C11: Kg
A12: Vitesse km/h vide | B12: =INDEX(tabdon,34,3+B8) -> 0 | C12: =INDEX(tabdon,38,3+B8) -> 0 | D12: Vitesse km/h vide | E12: =INDEX(tabdon,51,3+B8) -> 0 | F12: =INDEX(tabdon,54,3+B8) -> 0
A13: Pression arr int | B13: =INDEX(tabdon,36,3+B8) -> 0 | C13: =INDEX(tabdon,39,3+B8) -> 0 | D13: Pression av int | E13: =INDEX(tabdon,52,3+B8) -> 0 | F13: =INDEX(tabdon,55,3+B8) -> 0
A14: Pression arr ext | B14: =INDEX(tabdon,37,3+B8) -> 0 | C14: =INDEX(tabdon,40,3+B8) -> 0 | D14: Pression av ext | E14: =INDEX(tabdon,53,3+B8) -> 0 | F14: =INDEX(tabdon,56,3+B8) -> 0
A15: Vitesse plein | B15: =INDEX(tabdon,42,3+B8) -> 0 | C15: =INDEX(tabdon,45,3+B8) -> 0 | D15: Vitesse plein | E15: =INDEX(tabdon,57,3+B8) -> 0 | F15: =INDEX(tabdon,60,3+B8) -> 0
A16: Pression arr int | B16: =INDEX(tabdon,43,3+B8) -> 0 | C16: =INDEX(tabdon,46,3+B8) -> 0 | D16: Pression av int | E16: =INDEX(tabdon,58,3+B8) -> 0 | F16: =INDEX(tabdon,61,3+B8) -> 0
A17: Pression arr ext | B17: =INDEX(tabdon,44,3+B8) -> 0 | C17: =INDEX(tabdon,47,3+B8) -> 0 | D17: Pression av ext | E17: =INDEX(tabdon,59,3+B8) -> 0 | F17: =INDEX(tabdon,62,3+B8) -> 0
A18: Équipement | B18: 2
A19: Remarque | B19: =INDEX(tabdon,4,3+B18) -> 0 | C19: Remarque | D19: =INDEX(tabdon,5,3+B18) -> 0 | E19: Poids puissance | F19: =INDEX(tabdon,63,3+B18) -> 0
A20: Type de roue avant | B20: =INDEX(tabdon,6,3+B18) -> 0 | C20: Type de roue arrière | D20: =INDEX(tabdon,7,3+B18) -> 0 | E20: Poids puissance | F20: =INDEX(tabdon,64,3+B18) -> 0
A21: Poids ajouté av: | B21: =Rapport_tracteur!I41 -> 0 | C21: kg
A22: Vitesse km/h vide | B22: =INDEX(tabdon,34,3+B18) -> 0 | C22: =INDEX(tabdon,38,3+B18) -> 0 | D22: Vitesse km/h vide | E22: =INDEX(tabdon,51,3+B18) -> 0 | F22: =INDEX(tabdon,54,3+B18) -> 0
A23: Pression arr int | B23: =INDEX(tabdon,36,3+B18) -> 0 | C23: =INDEX(tabdon,39,3+B18) -> 0 | D23: Pression av int | E23: =INDEX(tabdon,52,3+B18) -> 0 | F23: =INDEX(tabdon,55,3+B18) -> 0
A24: Pression arr ext | B24: =INDEX(tabdon,37,3+B18) -> 0 | C24: =INDEX(tabdon,40,3+B18) -> 0 | D24: Pression av ext | E24: =INDEX(tabdon,53,3+B18) -> 0 | F24: =INDEX(tabdon,56,3+B18) -> 0
A25: Vitesse plein | B25: =INDEX(tabdon,42,3+B18) -> 0 | C25: =INDEX(tabdon,45,3+B18) -> 0 | D25: Vitesse plein | E25: =INDEX(tabdon,57,3+B18) -> 0 | F25: =INDEX(tabdon,60,3+B18) -> 0
A26: Pression arr int | B26: =INDEX(tabdon,43,3+B18) -> 0 | C26: =INDEX(tabdon,46,3+B18) -> 0 | D26: Pression av int | E26: =INDEX(tabdon,58,3+B18) -> 0 | F26: =INDEX(tabdon,61,3+B18) -> 0
A27: Pression arr ext | B27: =INDEX(tabdon,44,3+B18) -> 0 | C27: =INDEX(tabdon,47,3+B18) -> 0 | D27: Pression av ext | E27: =INDEX(tabdon,59,3+B18) -> 0 | F27: =INDEX(tabdon,62,3+B18) -> 0
A28: Équipement | B28: 3
A29: Remarque | B29: =INDEX(tabdon,4,3+B28) -> 0 | C29: Remarque | D29: =INDEX(tabdon,5,3+B28) -> 0 | E29: Poids puissance | F29: =INDEX(tabdon,63,3+B28) -> 0
A30: Type de roue avant | B30: =INDEX(tabdon,6,3+B28) -> 0 | C30: Type de roue arrière | D30: =INDEX(tabdon,7,3+B28) -> 0 | E30: Poids puissance | F30: =INDEX(tabdon,64,3+B28) -> 0
A31: Poids ajouté av: | B31: =Rapport_tracteur!J41 -> 0 | C31: Kg
A32: Vitesse km/h vide | B32: =INDEX(tabdon,34,3+B28) -> 0 | C32: =INDEX(tabdon,38,3+B28) -> 0 | D32: Vitesse km/h vide | E32: =INDEX(tabdon,51,3+B28) -> 0 | F32: =INDEX(tabdon,54,3+B28) -> 0
A33: Pression arr int | B33: =INDEX(tabdon,36,3+B28) -> 0 | C33: =INDEX(tabdon,39,3+B28) -> 0 | D33: Pression av int | E33: =INDEX(tabdon,52,3+B28) -> 0 | F33: =INDEX(tabdon,55,3+B28) -> 0
A34: Pression arr ext | B34: =INDEX(tabdon,37,3+B28) -> 0 | C34: =INDEX(tabdon,40,3+B28) -> 0 | D34: Pression av ext | E34: =INDEX(tabdon,53,3+B28) -> 0 | F34: =INDEX(tabdon,56,3+B28) -> 0
A35: Vitesse plein | B35: =INDEX(tabdon,42,3+B28) -> 0 | C35: =INDEX(tabdon,45,3+B28) -> 0 | D35: Vitesse plein | E35: =INDEX(tabdon,57,3+B28) -> 0 | F35: =INDEX(tabdon,60,3+B28) -> 0
A36: Pression arr int | B36: =INDEX(tabdon,43,3+B28) -> 0 | C36: =INDEX(tabdon,46,3+B28) -> 0 | D36: Pression av int | E36: =INDEX(tabdon,58,3+B28) -> 0 | F36: =INDEX(tabdon,61,3+B28) -> 0
A37: Pression arr ext | B37: =INDEX(tabdon,44,3+B28) -> 0 | C37: =INDEX(tabdon,47,3+B28) -> 0 | D37: Pression av ext | E37: =INDEX(tabdon,59,3+B28) -> 0 | F37: =INDEX(tabdon,62,3+B28) -> 0
A38: Équipement | B38: 4
A39: Remarque | B39: =INDEX(tabdon,4,3+B38) -> 0 | C39: Remarque | D39: =INDEX(tabdon,5,3+B38) -> 0 | E39: Poids puissance | F39: =INDEX(tabdon,63,3+B38) -> 0
A40: Type de roue avant | B40: =INDEX(tabdon,6,3+B38) -> 0 | C40: Type de roue arrière | D40: =INDEX(tabdon,7,3+B38) -> 0 | E40: Poids puissance | F40: =INDEX(tabdon,64,3+B38) -> 0
A41: Poids ajouté av: | B41: =Rapport_tracteur!K41 -> 0 | C41: Kg
A42: Vitesse km/h vide | B42: =INDEX(tabdon,34,3+B38) -> 0 | C42: =INDEX(tabdon,38,3+B38) -> 0 | D42: Vitesse km/h vide | E42: =INDEX(tabdon,51,3+B38) -> 0 | F42: =INDEX(tabdon,54,3+B38) -> 0
A43: Pression arr int | B43: =INDEX(tabdon,36,3+B38) -> 0 | C43: =INDEX(tabdon,39,3+B38) -> 0 | D43: Pression av int | E43: =INDEX(tabdon,52,3+B38) -> 0 | F43: =INDEX(tabdon,55,3+B38) -> 0
A44: Pression arr ext | B44: =INDEX(tabdon,37,3+B38) -> 0 | C44: =INDEX(tabdon,40,3+B38) -> 0 | D44: Pression av ext | E44: =INDEX(tabdon,53,3+B38) -> 0 | F44: =INDEX(tabdon,56,3+B38) -> 0
A45: Vitesse plein | B45: =INDEX(tabdon,42,3+B38) -> 0 | C45: =INDEX(tabdon,45,3+B38) -> 0 | D45: Vitesse plein | E45: =INDEX(tabdon,57,3+B38) -> 0 | F45: =INDEX(tabdon,60,3+B38) -> 0
A46: Pression arr int | B46: =INDEX(tabdon,43,3+B38) -> 0 | C46: =INDEX(tabdon,46,3+B38) -> 0 | D46: Pression av int | E46: =INDEX(tabdon,58,3+B38) -> 0 | F46: =INDEX(tabdon,61,3+B38) -> 0
A47: Pression arr ext | B47: =INDEX(tabdon,44,3+B38) -> 0 | C47: =INDEX(tabdon,47,3+B38) -> 0 | D47: Pression av ext | E47: =INDEX(tabdon,59,3+B38) -> 0 | F47: =INDEX(tabdon,62,3+B38) -> 0
A48: Équipement | B48: 5
A49: Remarque | B49: =INDEX(tabdon,4,3+B48) -> 0 | C49: Remarque | D49: =INDEX(tabdon,5,3+B48) -> 0 | E49: Poids puissance | F49: =INDEX(tabdon,63,3+B48) -> 0
A50: Type de roue avant | B50: =INDEX(tabdon,6,3+B48) -> 0 | C50: Type de roue arrière | D50: =INDEX(tabdon,7,3+B48) -> 0 | E50: Poids puissance | F50: =INDEX(tabdon,64,3+B48) -> 0
A51: Poids ajouté av: | B51: =Rapport_tracteur!L41 -> 0 | C51: Kg
A52: Vitesse km/h vide | B52: =INDEX(tabdon,34,3+B48) -> 0 | C52: =INDEX(tabdon,38,3+B48) -> 0 | D52: Vitesse km/h vide | E52: =INDEX(tabdon,51,3+B48) -> 0 | F52: =INDEX(tabdon,54,3+B48) -> 0
A53: Pression arr int | B53: =INDEX(tabdon,36,3+B48) -> 0 | C53: =INDEX(tabdon,39,3+B48) -> 0 | D53: Pression av int | E53: =INDEX(tabdon,52,3+B48) -> 0 | F53: =INDEX(tabdon,55,3+B48) -> 0
A54: Pression arr ext | B54: =INDEX(tabdon,37,3+B48) -> 0 | C54: =INDEX(tabdon,40,3+B48) -> 0 | D54: Pression av ext | E54: =INDEX(tabdon,53,3+B48) -> 0 | F54: =INDEX(tabdon,56,3+B48) -> 0
A55: Vitesse plein | B55: =INDEX(tabdon,42,3+B48) -> 0 | C55: =INDEX(tabdon,45,3+B48) -> 0 | D55: Vitesse plein | E55: =INDEX(tabdon,57,3+B48) -> 0 | F55: =INDEX(tabdon,60,3+B48) -> 0
A56: Pression arr int | B56: =INDEX(tabdon,43,3+B48) -> 0 | C56: =INDEX(tabdon,46,3+B48) -> 0 | D56: Pression av int | E56: =INDEX(tabdon,58,3+B48) -> 0 | F56: =INDEX(tabdon,61,3+B48) -> 0
A57: Pression arr ext | B57: =INDEX(tabdon,44,3+B48) -> 0 | C57: =INDEX(tabdon,47,3+B48) -> 0 | D57: Pression av ext | E57: =INDEX(tabdon,59,3+B48) -> 0 | F57: =INDEX(tabdon,62,3+B48) -> 0
A60: Prenez le temps lors du remisage de remonter la pression de vos pneus à la pression maximale du pneu pour diminuer les fendillements. Pensez à changer les liquides des pneus radiaux pour les poids que vous pourriez enlever au besoin.
A62: Conception Bruno Garon ing. | B62: 2021-06-01
A64: Pour les roues doubles et triples, prenez la charge par essieu divisé par le nombre de roues et le facteur 0,88 ou 0,82.

Sheet Compilation des données
A1: Nom du Club | B1: Adresse | C1: Ville | D1: Code postal | E1: Nom du conseiller | F1: No de téléphone | G1: Nom de l'entreprise | H1: Nom du producteur | I1: Ville | J1: Essai no : | K1: Tracteur no : | L1: Remarque | M1: Remarque | N1: Type de roues avant | O1: Type de roues arrière | P1: Catégorie de l'équipement | Q1: Empattement | R1: déportance avant | S1: déportance arrière | T1: Équipement arrière | U1: Poids équipement | V1: Poids équipement à vide | W1: poids roues arrière | X1: Poids essieu arrière vide | Y1: Poids total arrière vide | Z1: Poids essieu arrière plein | AA1: Poids total arrière plein | AB1: Répartition arrière vide | AC1: Répartition arrière plein | AD1: Équipement avant | AE1: Poids équipement | AF1: Poids Roue avant | AG1: Poids essieu avant vide | AH1: Poids total avant vide | AI1: Poids essieu avant plein | AJ1: Poids total avant plein | AK1: Répartition avant vide | AL1: Répartition avant plein | AM1: Poids total vide | AN1: Poids total plein | AO1: Pneu arrière | AP1: Vitesse | AQ1: Poids Pneu arrière vide | AR1: Pression arrière int. Vide | AS1: Pression arrière ext.vide | AT1: Vitesse | AU1: Pression arrière int. vide | AV1: Pression arrière ext. Vide | AW1: Poids Pneu arrière plein | AX1: Vitesse plein | AY1: Pression arrière int. Plein | AZ1: Pression arrière ext.plein | BA1: Vitesse | BB1: Pression arrière int.plein | BC1: Pression arrière ext. Plein | BD1: Pneu avant | BE1: Poids Pneu avant | BF1: poids pneu équipement vide | BG1: Vitesse vide | BH1: Pression avant int. Vide | BI1: Pression avant ext. Vide | BJ1: Vitesse | BK1: Pression avant int. Vide | BL1: Pression avant ext. Vide | BM1: Vitesse plein | BN1: Pression avant int. Plein | BO1: Pression avant ext. Plein | BP1: Vitesse | BQ1: Pression avant int. plein | BR1: Pression avant ext. plein | BS1: Rapport de charge | BT1: Rapport de charge | BU1: Puissance PDF | BV1: Puissance PDF | BW1: Ext G Av | BX1: Int G Av | BY1: Int D Av | BZ1: Ext D Av | CA1: Ext G Ar | CB1: Int G Ar | CC1: Int D Ar | CD1: Ext D Ar | CF1: Compagnie, grandeur | CG1: indice de charge | CH1: Rayon sous charge | CJ1: Compagnie, grandeur | CN1: Compagnie, grandeur | CR1: Compagnie, grandeur
A2: XXXXXXX | B2: XXXXXXX | C2: XXXXXXX | D2: XXXXXXX | E2: XXXXXXX | F2: XXXXXXX | G2: XXXXXXX | H2: XXXXXXX | I2: XXXXXXX | J2: XXXXXXX | K2: XXXXXXX | L2: XXXXXXX | M2: XXXXXXX | N2: XXXXXXX | O2: XXXXXXX | P2: XXXXXXX | Q2: m | R2: m | S2: m | T2: m | U2: kg | V2: kg | W2: kg | X2: kg | Y2: kg | Z2: kg | AA2: kg | AB2: % | AC2: % | AE2: kg | AF2: kg | AG2: kg | AH2: kg | AI2: kg | AJ2: kg | AK2: % | AL2: XXXXXXX | AM2: kg | AN2: kg | AO2: xxx | AP2: Km/h | AQ2: Kg | AR2: Psi | AS2: Psi | AT2: Km/h | AU2: Psi | AV2: Psi | AW2: kg | AX2: Km/h | AY2: Psi | AZ2: Psi | BA2: Km/h | BB2: Psi | BC2: Psi | BD2: XXXXXXX | BE2: Kg | BF2: Kg | BG2: Km/h | BH2: Psi | BI2: Psi | BJ2: Km/h | BK2: Psi | BL2: Psi | BM2: Km/h | BN2: Psi | BO2: Psi | BP2: Km/h | BQ2: Psi | BR2: Psi | BS2: Lb/Hp | BT2: Kg/HP | BU2: Hp | BV2: KW | BW2: Psi | BX2: Psi | BY2: Psi | BZ2: Psi | CA2: Psi | CB2: Psi | CC2: Psi | CD2: Psi | CE2: Pneu | CF2: Avant | CI2: Avant | CM2: Arrière | CQ2: Arrière
A3: =Informations!K9 -> Votre club | B3: =Informations!K10 -> 0 | C3: =Informations!K11 -> 0 | D3: =Informations!K12 -> 0 | E3: =Informations!K13 -> Bruno Garon, ing | F3: =Informations!K14 -> 450-779-2669 | G3: =Informations!K15 -> 0 | H3: =Informations!K16 -> 0 | I3: =Informations!K17 -> 0 | J3: ='schéma tracteur'!$T$11 -> 1 | K3: ='schéma tracteur'!$T$12 -> 0 | L3: ='schéma tracteur'!$T$13 -> 0 | M3: ='schéma tracteur'!$T$14 -> 0 | N3: ='schéma tracteur'!$Y$21 -> Simple | O3: ='schéma tracteur'!$E$25 -> Simple | P3: ='schéma tracteur'!$C$10 -> Trainé | Q3: ='schéma tracteur'!$O$37 -> 0 | R3: ='schéma tracteur'!$V$37 -> 0 | S3: ='schéma tracteur'!$G$37 -> 0 | T3: ='schéma tracteur'!$C$12 -> 0 | U3: ='schéma tracteur'!$E$17 -> 0 | V3: ='schéma tracteur'!$E$20 -> 0 | W3: ='schéma tracteur'!$J$18 -> 0 | X3: ='schéma tracteur'!$J$31 ->  | Y3: ='schéma tracteur'!$G$31 ->  | Z3: ='schéma tracteur'!$J$34 ->  | AA3: ='schéma tracteur'!$G$34 ->  | AB3: =ROUND('schéma tracteur'!$M$26:$M$26,1) ->  | AC3: ='schéma tracteur'!$M$28 ->  | AD3: ='schéma tracteur'!$Y$19 -> 0 | AE3: ='schéma tracteur'!$Y$17 -> 0 | AF3: ='schéma tracteur'!$T$22 -> 0 | AG3: ='schéma tracteur'!$T$31 ->  | AH3: ='schéma tracteur'!$V$31 ->  | AI3: ='schéma tracteur'!$T$34 ->  | AJ3: ='schéma tracteur'!$V$34 ->  | AK3: =ROUND('schéma tracteur'!$Q$26,1) ->  | AL3: ='schéma tracteur'!$Q$28 ->  | AM3: ='schéma tracteur'!$B$32 ->  | AN3: ='schéma tracteur'!$B$34 ->  | AO3: xxxxxxxxxxxxxxx | AP3: ='schéma tracteur'!$H$49 -> 10 | AQ3: ='schéma tracteur'!$J$44 ->  | AR3: ='schéma tracteur'!$H$50 -> 0 | AS3: ='schéma tracteur'!$H$51 -> 0 | AT3: ='schéma tracteur'!$K$49 -> 30 | AU3: ='schéma tracteur'!$K$50 -> 0 | AV3: ='schéma tracteur'!$K$51 -> 0 | AW3: ='schéma tracteur'!$J$45 ->  | AX3: ='schéma tracteur'!$H$53 -> 10 | AY3: ='schéma tracteur'!$H$54 -> 0 | AZ3: ='schéma tracteur'!$H$55 -> 0 | BA3: ='schéma tracteur'!$K$53 -> 30 | BB3: ='schéma tracteur'!$K$54 -> 0 | BC3: ='schéma tracteur'!$K$55 -> 0 | BD3: xxxxxxxxxxxxxxx | BE3: ='schéma tracteur'!$W$44 ->  | BF3: ='schéma tracteur'!$W$45 ->  | BG3: ='schéma tracteur'!$T$49 -> 10 | BH3: ='schéma tracteur'!$T$50 -> 0 | BI3: ='schéma tracteur'!$T$51 -> 0 | BJ3: ='schéma tracteur'!$V$49 -> 30 | BK3: ='schéma tracteur'!$V$50 -> 0 | BL3: ='schéma tracteur'!$V$51 -> 0 | BM3: ='schéma tracteur'!$T$53 -> 10 | BN3: ='schéma tracteur'!$T$54 -> 0 | BO3: ='schéma tracteur'!$T$55 -> 0 | BP3: ='schéma tracteur'!$V$53 -> 30 | BQ3: ='schéma tracteur'!$V$54 -> 0 | BR3: ='schéma tracteur'!$V$55 -> 0 | BS3: =ROUND('schéma tracteur'!$G$6,1) ->  | BT3: =ROUND('schéma tracteur'!$G$5,1) ->  | BU3: ='schéma tracteur'!$E$2 -> 0 | BV3: =BU3*0.746 -> 0 | BW3: ='schéma tracteur'!$W$3 -> 0 | BX3: ='schéma tracteur'!$V$3 -> 0 | BY3: ='schéma tracteur'!$V$4 -> 0 | BZ3: ='schéma tracteur'!$W$4 -> 0 | CA3: ='schéma tracteur'!$W$5 -> 0 | CB3: ='schéma tracteur'!$V$5 -> 0 | CC3: ='schéma tracteur'!$V$6 -> 0 | CD3: ='schéma tracteur'!$W$6 -> 0 | CE3: Int | CF3: ='schéma tracteur'!$W$28 -> 0 | CG3: ='schéma tracteur'!$AB$28 -> 0 | CH3: ='schéma tracteur'!$W$50 -> 0 | CI3: Ext | CJ3: ='schéma tracteur'!CU17 -> 0 | CK3: ='schéma tracteur'!$AB$29 -> 0 | CL3: ='schéma tracteur'!$W$51 -> 0 | CM3: Int | CN3: ='schéma tracteur'!$C$28 -> 0 | CO3: ='schéma tracteur'!$H$28 -> 0 | CP3: ='schéma tracteur'!$M$50 -> 0 | CQ3: Ext | CR3: ='schéma tracteur'!$C$29 -> 0 | CS3: ='schéma tracteur'!$H$29 -> 0 | CT3: ='schéma tracteur'!$M$51 -> 0
A5: Nom du Club | B5: Adresse | C5: Ville | D5: Code postal | E5: Nom du conseiller | F5: No de téléphone | G5: Nom de l'entreprise | H5: Nom du producteur | I5: Ville | J5: Essai no : | K5: Tracteur no : | L5: Remarque | M5: Remarque | N5: Type de roues avant | O5: Type de roues arrière | P5: Catégorie de l'équipement | Q5: Empattement | R5: déportance avant | S5: déportance arrière | T5: Équipement arrière | U5: Poids équipement | V5: Poids équipement à vide | W5: poids roues arrière | X5: Poids essieu arrière vide | Y5: Poids total arrière vide | Z5: Poids essieu arrière plein | AA5: Poids total arrière plein | AB5: Répartition arrière vide | AC5: Répartition arrière plein | AD5: Équipement avant | AE5: Poids équipement | AF5: Poids Roue avant | AG5: Poids essieu avant vide | AH5: Poids total avant vide | AI5: Poids essieu avant plein | AJ5: Poids total avant plein | AK5: Répartition avant vide | AL5: Répartition avant plein | AM5: Poids total vide | AN5: Poids total plein | AO5: Pneu arrière | AP5: Vitesse | AQ5: Poids Pneu arrière vide | AR5: Pression arrière int. Vide | AS5: Pression arrière ext.vide | AT5: Vitesse | AU5: Pression arrière int. vide | AV5: Pression arrière ext. Vide | AW5: Poids Pneu arrière plein | AX5: Vitesse plein | AY5: Pression arrière int. Plein | AZ5: Pression arrière ext.plein | BA5: Vitesse | BB5: Pression arrière int.plein | BC5: Pression arrière ext. Plein | BD5: Pneu avant | BE5: Poids Pneu avant | BF5: poids pneu équipement vide | BG5: Vitesse vide | BH5: Pression avant int. Vide | BI5: Pression avant ext. Vide | BJ5: Vitesse | BK5: Pression avant int. Vide | BL5: Pression avant ext. Vide | BM5: Vitesse plein | BN5: Pression avant int. Plein | BO5: Pression avant ext. Plein | BP5: Vitesse | BQ5: Pression avant int. plein | BR5: Pression avant ext. plein | BS5: Rapport de charge | BT5: Rapport de charge | BU5: Puissance PDF | BV5: Puissance PDF | BW5: Ext G Av | BX5: Int G Av | BY5: Int D Av | BZ5: Ext D Av | CA5: Ext G Ar | CB5: Int G Ar | CC5: Int D Ar | CD5: Ext D Ar | CF5: Compagnie, grandeur | CG5: indice de charge | CH5: Rayon sous charge | CJ5: Compagnie, grandeur | CN5: Compagnie, grandeur | CR5: Compagnie, grandeur
A6: XXXXXXX | B6: XXXXXXX | C6: XXXXXXX | D6: XXXXXXX | E6: XXXXXXX | F6: XXXXXXX | G6: XXXXXXX | H6: XXXXXXX | I6: XXXXXXX | J6: XXXXXXX | K6: XXXXXXX | L6: XXXXXXX | M6: XXXXXXX | N6: XXXXXXX | O6: XXXXXXX | P6: XXXXXXX | Q6: m | R6: m | S6: m | T6: m | U6: kg | V6: kg | W6: kg | X6: kg | Y6: kg | Z6: kg | AA6: kg | AB6: % | AC6: %
A7: aa | B7: ss | C7: dd | D7: ff | E7: Bruno Garon, ing | F7: asw | G7: dh | H7: dh | I7: dhsa | J7: 1 | K7: Jonh Derre | L7: 6130 | M7: 0 | N7: Double | O7: Double | P7: semi portée | Q7: 3 | R7: 1.2 | S7: 1 | T7: 0 | U7: 1000 | V7: 0 | W7: 250 | X7: 10000 | Y7: 11383.33333 | Z7: 10400 | AA7: 11783.33333 | AB7: 63.8 | AC7: 72.51282051 | AD7: 0 | AE7: 500 | AF7: 100 | AG7: 6000 | AH7: 6466.666667 | AI7: 4000 | AJ7: 4466.666667 | AK7: 36.2 | AL7: 27.48717949 | AM7: 17850 | AN7: 16250 | AO7: xxxxxxxxxxxxxxx | AP7: 10 | AQ7: 3233.901515 | AR7: 10 | AS7: 9 | AT7: 30 | AU7: 12 | AV7: 11 | AW7: 3347.537879 | AX7: 10 | AY7: 10.5 | AZ7: 9.5 | BA7: 30 | BB7: 11.5 | BC7: 10.5 | BD7: xxxxxxxxxxxxxxx | BE7: 1837.121212 | BF7: 1931.818182 | BG7: 10 | BH7: 14 | BI7: 13 | BJ7: 30 | BK7: 16 | BL7: 15 | BM7: 10 | BN7: 13 | BO7: 12 | BP7: 30 | BQ7: 14 | BR7: 13 | BS7: 392.7 | BT7: 178.5 | BU7: 100 | BV7: 74.6 | BW7: 0 | BX7: 12 | BY7: 13 | BZ7: 0 | CA7: 0 | CB7: 14 | CC7: 14 | CD7: 0 | CE7: Int | CF7: michelin | CG7: 143D | CH7: 666 | CI7: Ext | CJ7: 0 | CK7: 143D | CL7: 666 | CM7: Int | CN7: michelin | CO7: 158A8 | CP7: 555 | CQ7: Ext | CR7: michelin | CS7: 158A8 | CT7: 555

Sheet avertisement

Sheet Batteuse Chenille
A1: Moisonneuse batteuse à chenille | V1: Colonne1 | W1: Colonne2 | X1: Colonne3 | Y1: Colonne4
A2: Sans nez | I2: Volume du réservoir carburant | L2: % de répartition | V2: A_Choisir | W2: Vide | X2: kg/m3 | Y2: Source agri réseau
A3: Total | B3: Poids | C3: Pression | D3: Poids chenille | H3: Peak | J3: 0.835 | K3: =I3*J3 -> 0 | L3: 0.8 | V3: Blé: | W3: 1 | X3: 840
A4: =+B4+E5 -> 0 | V4: Canola: | W4: 2 | X4: 800
A5: Pneu | B5: =B4+K3*L3/2 -> 0 | E5: =SUM(D4:G4) -> 0 | F5: =ROUND(E5+K3*(1-L3)/2,0) -> 0 | H5: =H4/E5 ->  | V5: Maïs: | W5: 3 | X5: 800
E6: Dimension | V6: Orge: | W6: 4 | X6: 650
A7: Vf 750/65R26 | F7: =E5/F6/G6 ->  | V7: Pois: | W7: 5 | X7: 820
A8: 180 A8 | V8: Sarrasin: | W8: 6 | X8: 670
V9: Soya: | W9: 7 | X9: 780
A10: Total balance
A11: =A4+A17 -> 0
A12: Total Carburant
A13: =A11+K3 -> 0
A16: Total | B16: Poids | C16: Pression | D16: Poids chenille | H16: Peak
A17: =+B17+E18 -> 0
B18: =B17+K3*L3/2 -> 0 | E18: =SUM(D17:G17) -> 0 | F18: =ROUND(E18+K3*(1-L3)/2,0) -> 0 | H18: =H17/E18 -> 
F19: =E18/F6/G6 -> 
A21: Moisonneuse batteuse à chenille | E21: =E1 -> 0
A22: Avec le nez à maïs 12 rangs | I22: Volume du réservoir carburant | L22: % de répartition
A23: Total | J23: =J3 -> 0.835 | K23: 0 | L23: 0.8
A24: =+B24+E25 -> 0 | K24: % répartition | L24: 0.65
E25: =SUM(D24:G24) -> 0 | H25: =H24/E25 ->  | I25: Volume de grains | K25: Masse vol | L25: Poids
E26: =E6 -> Dimension | J26: Maïs: | K26: =VLOOKUP(J26,tab_grains,3) -> 800 | L26: =I26*1.25/35.3*K26/(1-I28) -> 0
F27: =F25/F26/G26 ->  | I27: Taux d'humidité | K27: =I26*1.25/35.38*1000 -> 0
O28: Poids total
K29: Arrière /2 | L29: Avant /2
A30: Total balance | K30: =K23*L23/2 -> 0 | L30: =K23*(1-L23)/2 -> 0 | M30: Poids essence | O30: =(K30+L30)*2 -> 0
A31: =A24+A39 -> 0 | I31: Poids du nez avant | K31: =L26*(1-L24)/2 -> 0 | L31: =L26*L24/2 -> 0 | M31: Poids grains | O31: =(K31+L31)*2 -> 0
A32: Total | K32: =-I32*J37/J36/2 ->  | L32: =(I32+I32*J37/J36)/2 ->  | M32: poids nez | O32: =(K32+L32)*2 -> 
A33: =ROUND(A31+L26+I32+K23,0) -> 0 | K33: =B4 -> 0 | L33: =E5 -> 0
A34: Différence | K34: =SUM(K30:K33) ->  | L34: =SUM(L30:L33) -> 
A35: =A33-A13 -> 0 | K35: =B17 -> 0 | L35: =E18 -> 0
I36: Emp | K36: =+K30+K31+K32+K35 ->  | L36: =L30+L31+L32+L35 -> 
I37: déportance
A38: Total
A39: =+B39+E40 -> 0
B40: =IF(B39=0,B17+K23*L23/2+L26*(1-L24)/2,B39+K23*L23/2+L26*(1-L24)/2)-I32*J37/J36/2 ->  | E40: =SUM(D39:G39) -> 0 | F40: =IF(D39=0,ROUND(E18+K23*(1-L23)/2+L26*L24/2,0),+ROUND(E40+K23*(1-L23)/2+L26*L24/2,0))+ROUND(I32+I32*J37/J36,0)/2 ->  | H40: =H39/E40 -> 
F41: =F40/F26/G26 -> 
A44: Poids batteuse sans le nez ni grain
A45: Résumé | C45: Poids essieu/chenille | D45: Poids à la roue ou chenille | E45: Nb roue | F45: Poids avec essence | G45: Poids à la roue/Chenille
A46: Essieu avant | C46: =D4+E4+D17+E17 -> 0 | D46: =C46/E46 -> 0 | E46: 4 | F46: =ROUND(F5+F18,0) -> 0 | G46: =F46/E46 -> 0
A47: Essieu arrière | C47: =B4+B17 -> 0 | D47: =C47/E47 -> 0 | E47: 2 | F47: =ROUND(B5+B18,0) -> 0 | G47: =F47/E47 -> 0
A48: Pneu essieu avant | C48: =E19 -> 0 | E48: 0
C49: 0 | D49: 0 | E49: 0
A50: Pneu essieu arriàre | C50: =A6 -> 0 | D50: =A7 -> Vf 750/65R26 | E50: =A8 -> 180 A8
A52: Poids de la batteuse en charge avec le grain | C52: Poids essieu/Chenille | D52: Poids à la roue/chenille | E52: Nb roue | F52: Poids total | G52: Poids à la roue/chenille
A53: Essieu avant | C53: =E25+E40 -> 0 | D53: =C53/E53 -> 0 | E53: 4 | F53: =ROUND(+F25+F40,0) ->  | G53: =ROUND(F53/E53,0) -> 
A54: Essieu arrière | C54: =B24+B39 -> 0 | D54: =C54/E54 -> 0 | E54: 2 | F54: =ROUND(B25+B40,0) ->  | G54: =ROUND(F54/E54,0) -> 
A55: Grain | B55: =ROUND(I26,0) -> 0 | C55: =K26 -> 800 | D55: =I28 -> 0 | E55: =L24 -> 0.65 | F55: =ROUND(L26,0) -> 0
A59: Moisonneuse batteuse à chenille | V59: Colonne1 | W59: Colonne2 | X59: Colonne3 | Y59: Colonne4
A60: Sans nez | I60: Volume du réservoir carburant | L60: % de répartition | V60: A_Choisir | W60: Vide | X60: kg/m3 | Y60: Source agri réseau
A61: Total | B61: Poids | C61: Pression | D61: Poids chenille | H61: Peak | J61: 0.835 | K61: =I61*J61 -> 0 | L61: 0.8 | V61: Blé: | W61: 1 | X61: 840
A62: =+B62+E63 -> 0 | V62: Canola: | W62: 2 | X62: 800
A63: Pneu | B63: =B62+K61*L61/2 -> 0 | E63: =SUM(D62:G62) -> 0 | F63: =ROUND(E63+K61*(1-L61)/2,0) -> 0 | H63: =H62/E63 ->  | V63: Maïs: | W63: 3 | X63: 800
E64: Dimension | V64: Orge: | W64: 4 | X64: 650
F65: =E63/F64/G64 ->  | V65: Pois: | W65: 5 | X65: 820
V66: Sarrasin: | W66: 6 | X66: 670
V67: Soya: | W67: 7 | X67: 780
A68: Total balance
A69: =A62+A75 -> 0
A70: Total Carburant
A71: =A69+K61 -> 0
A74: Total | B74: Poids | C74: Pression | D74: Poids chenille | H74: Peak
A75: =+B75+E76 -> 0
B76: =B75+K61*L61/2 -> 0 | E76: =SUM(D75:G75) -> 0 | F76: =ROUND(E76+K61*(1-L61)/2,0) -> 0 | H76: =H75/E76 -> 
F77: =E76/F64/G64 -> 
A79: Moisonneuse batteuse à chenille
A80: Avec le nez à maïs 12 rangs | I80: Volume du réservoir carburant | L80: % de répartition
A81: Total | B81: Poids | C81: Pression | D81: Poids chenille | H81: Peak | J81: =J61 -> 0.835 | K81: 0 | L81: 0.8
A82: =+B82+E83 -> 0 | K82: % répartition | L82: 0.65
B83: =IF(B82=0,B62+K81*L81/2+L84*(1-L82)/2,B82+K81*L81/2+L84*(1-L82)/2)-I90*J95/J94/2 ->  | E83: =SUM(D82:G82) -> 0 | F83: =IF(D82=0,ROUND(E63+K81*(1-L81)/2+L84*L82/2,0),+ROUND(E83+K81*(1-L81)/2+L84*L82/2,0))+ROUND(I90+I90*J95/J94,0)/2 ->  | H83: =H82/E83 ->  | I83: Volume de grains | K83: Masse vol | L83: Poids
E84: =E64 -> Dimension | J84: Maïs: | K84: =VLOOKUP(J84,tab_grains,3) -> 800 | L84: =I84*1.25/35.3*K84/(1-I86) -> 0
F85: =F83/F84/G84 ->  | I85: Taux d'humidité | K85: =I84*1.25/35.38*1000 -> 0
O86: Poids total
K87: Arrière /2 | L87: Avant /2
A88: Total balance | K88: =K81*L81/2 -> 0 | L88: =K81*(1-L81)/2 -> 0 | M88: Poids essence | O88: =(K88+L88)*2 -> 0
A89: =A82+A97 -> 0 | I89: Poids du nez avant | K89: =L84*(1-L82)/2 -> 0 | L89: =L84*L82/2 -> 0 | M89: Poids grains | O89: =(K89+L89)*2 -> 0
A90: Total | K90: =-I90*J95/J94/2 ->  | L90: =(I90+I90*J95/J94)/2 ->  | M90: poids nez | O90: =(K90+L90)*2 -> 
A91: =ROUND(A89+L84+I90+K81,0) -> 0 | K91: =B62 -> 0 | L91: =E63 -> 0
A92: Différence | K92: =SUM(K88:K91) ->  | L92: =SUM(L88:L91) -> 
A93: =A91-A71 -> 0 | K93: =B75 -> 0 | L93: =E76 -> 0
I94: Emp | K94: =+K88+K89+K90+K93 ->  | L94: =L88+L89+L90+L93 -> 
I95: déportance
A96: Total | B96: Poids | C96: Pression | D96: Poids chenille | H96: Peak
A97: =+B97+E98 -> 0
B98: =IF(B97=0,B75+K81*L81/2+L84*(1-L82)/2,B97+K81*L81/2+L84*(1-L82)/2)-I90*J95/J94/2 ->  | E98: =SUM(D97:G97) -> 0 | F98: =IF(D97=0,ROUND(E76+K81*(1-L81)/2+L84*L82/2,0),+ROUND(E98+K81*(1-L81)/2+L84*L82/2,0))+ROUND(I90+I90*J95/J94,0)/2 ->  | H98: =H97/E98 -> 
F99: =F98/F84/G84 -> 
A102: Poids batteuse sans le nez ni grain
A103: Résumé | C103: Poids essieu/chenille | D103: Poids à la roue ou chenille | E103: Nb roue | F103: Poids avec essence | G103: Poids à la roue/Chenille
A104: Essieu avant | C104: =D62+E62+D75+E75 -> 0 | D104: =C104/E104 -> 0 | E104: 4 | F104: =ROUND(F63+F76,0) -> 0 | G104: =F104/E104 -> 0
A105: Essieu arrière | C105: =B62+B75 -> 0 | D105: =C105/E105 -> 0 | E105: 2 | F105: =ROUND(B63+B76,0) -> 0 | G105: =F105/E105 -> 0
A106: Pneu essieu avant | C106: =E77 -> 0 | D106: =F77 ->  | E106: =G77 -> 0
C107: 0 | D107: 0 | E107: 0
A108: Pneu essieu arriàre | C108: =A64 -> 0 | D108: =A65 -> 0 | E108: =A66 -> 0
A110: Poids de la batteuse en charge avec le grain | C110: Poids essieu/Chenille | D110: Poids à la roue/chenille | E110: Nb roue | F110: Poids total | G110: Poids à la roue/chenille
A111: Essieu avant | C111: =E83+E98 -> 0 | D111: =C111/E111 -> 0 | E111: 4 | F111: =ROUND(+F83+F98,0) ->  | G111: =ROUND(F111/E111,0) -> 
A112: Essieu arrière | C112: =B82+B97 -> 0 | D112: =C112/E112 -> 0 | E112: 2 | F112: =ROUND(B83+B98,0) ->  | G112: =ROUND(F112/E112,0) -> 
A113: Grain | B113: =ROUND(I84,0) -> 0 | C113: =K84 -> 800 | D113: =I86 -> 0 | E113: =L82 -> 0.65 | F113: =ROUND(L84,0) -> 0

Sheet Batteuse Roue
D1: Batteuse | V1: Colonne1 | W1: Colonne2 | X1: Colonne3 | Y1: Colonne4
A2: Sans nez | I2: Volume du réservoir carburant | L2: % de répartition | V2: A_Choisir | W2: Vide | X2: kg/m3 | Y2: Source agri réseau
A3: Total | B3: Poids | C3: Pression | D3: Poids roue | F3: Pression | J3: 0.835 | K3: =I3*J3 -> 0 | L3: 0.7 | V3: Blé: | W3: 1 | X3: 840
A4: =+B4+E5 -> 0 | V4: Canola: | W4: 2 | X4: 800
A5: Pneu | B5: =B4+K3*L3/2 -> 0 | E5: =SUM(D4:E4) -> 0 | F5: =ROUND(E5+K3*(1-L3)/2,0) -> 0 | V5: Maïs: | W5: 3 | X5: 800
V6: Orge: | W6: 4 | X6: 650
A7: Vf 750/65R26 | V7: Pois: | W7: 5 | X7: 820
A8: 180A8 | V8: Sarrasin: | W8: 6 | X8: 670
V9: Soya: | W9: 7 | X9: 780
A10: Total balance
A11: =A4+A17 -> 0
A13: Total carburant
A14: =ROUND(B5+F5+F18+B18,0) -> 0
A16: Total | B16: Poids | C16: Pression | D16: Poids roue | F16: Pression
A17: =+B17+E18 -> 0
B18: =B17+K3*L3/2 -> 0 | E18: =SUM(D17:E17) -> 0 | F18: =ROUND(E18+K3*(1-L3)/2,0) -> 0
C19: Pneu intérieur | D19: Michelin
C20: Pneu extérieur | D20: Michelin
E21: =E1 -> 0
A22: Avec le nez à maïs 12 rangs | I22: Volume du réservoir carburant | L22: % répartition
A23: Total | B23: Poids | C23: Pression | D23: Poids roue | F23: Pression | I23: 400 | J23: =J3 -> 0.835 | K23: 0 | L23: 0.8
A24: =+B24+E25 -> 0 | K24: % répartition | L24: 0.6
B25: =IF(B24=0,B4+$K$23*$L$23/2+$L$26*(1-$L$24)/2,B24+$K$23*$L$23/2+$L$26*(1-$L$24)/2)-$I$32*$J$37/$J$36/2 ->  | E25: =SUM(D24:E24) -> 0 | F25: =IF(D24=0,ROUND(E5+$K$23*(1-$L$23)/2+$L$26*$L$24/2,0),+ROUND(E25+$K$23*(1-$L$23)/2+$L$26*$L$24/2,0))+ROUND($I$32+$I$32*$J$37/$J$36,0)/2 ->  | I25: Volume de grains | K25: Masse vol | L25: Poids
E26: Roue | F26: =F25/2 ->  | J26: Maïs: | K26: =VLOOKUP(J26,tab_grains,3) -> 800 | L26: =ROUND(I26*1.25/35.3*K26/(1-I28),0) -> 0
I27: Taux d'humidité | K27: =I26*1.25/35.38*1000 -> 0
I28: 0.24 | O28: Poids total
K29: Arrière /2 | L29: Avant /2
A30: Total balance | K30: =K23*L23/2 -> 0 | L30: =K23*(1-L23)/2 -> 0 | M30: Poids essence | O30: =(K30+L30)*2 -> 0
A31: =A24+A39 -> 0 | I31: Poids du nez avant | K31: =L26*(1-L24)/2 -> 0 | L31: =L26*L24/2 -> 0 | M31: Poids grains | O31: =(K31+L31)*2 -> 0
I32: 0 | K32: =-I32*J37/J36/2 ->  | L32: =(I32+I32*J37/J36)/2 ->  | M32: poids nez | O32: =(K32+L32)*2 -> 
A33: Total | K33: =B4 -> 0 | L33: =E5 -> 0
A34: =ROUND(A31+L26+I32+K23,0) -> 0 | K34: =SUM(K30:K33) ->  | L34: =SUM(L30:L33) -> 
A35: Différence | K35: =B17 -> 0 | L35: =E18 -> 0
A36: =A34-A14 -> 0 | I36: Emp | K36: =K30+K31+K32+K35 ->  | L36: =L30+L31+L32+L35 -> 
I37: déportance
A38: Total | B38: Poids | C38: Pression | D38: Poids roue | F38: Pression
A39: =+B39+E40 -> 0
B40: =IF(B39=0,B17+$K$23*$L$23/2+$L$26*(1-$L$24)/2,B39+$K$23*$L$23/2+$L$26*(1-$L$24)/2)-$I$32*$J$37/$J$36/2 ->  | E40: =SUM(D39:E39) -> 0 | F40: =IF(D39=0,ROUND(E18+$K$23*(1-$L$23)/2+$L$26*$L$24/2,0),+ROUND(E40+$K$23*(1-$L$23)/2+$L$26*$L$24/2,0))+ROUND($I$32+$I$32*$J$37/$J$36,0)/2 -> 
E41: Roue | F41: =F40/2 -> 
A44: Poids batteuse sans le nez ni grain
A45: Résumé | C45: Poids essieu/chenille | D45: Poids à la roue ou chenille | E45: Nb roue | F45: Poids avec essence | G45: Poids à la roue/Chenille
A46: Essieu avant | C46: =D4+E4+D17+E17 -> 0 | D46: =C46/E46 -> 0 | E46: 4 | F46: =ROUND(F5+F18,0) -> 0 | G46: =F46/E46 -> 0
A47: Essieu arrière | C47: =B4+B17 -> 0 | D47: =C47/E47 -> 0 | E47: 2 | F47: =ROUND(B5+B18,0) -> 0 | G47: =F47/E47 -> 0
A48: Pneu essieu avant | C48: =E19 -> 0 | D48: 0 | E48: 0
C49: 0 | D49: 0 | E49: 0
A50: Pneu essieu arriàre | C50: =A6 -> 0 | D50: =A7 -> Vf 750/65R26 | E50: =A8 -> 180A8
A52: Poids de la batteuse en charge avec le grain | C52: Poids essieu/Chenille | D52: Poids à la roue/chenille | E52: Nb roue | F52: Poids total | G52: Poids à la roue/chenille
A53: Essieu avant | C53: =E25+E40 -> 0 | D53: =C53/E53 -> 0 | E53: 4 | F53: =ROUND(+F25+F40,0) ->  | G53: =ROUND(F53/E53,0) -> 
A54: Essieu arrière | C54: =B24+B39 -> 0 | D54: =C54/E54 -> 0 | E54: 2 | F54: =ROUND(B25+B40,0) ->  | G54: =ROUND(F54/E54,0) -> 
A55: Grain | B55: =I26 -> 0 | C55: =K26 -> 800 | D55: =I28 -> 0.24 | E55: =L24 -> 0.6 | F55: =L26 -> 0

Sheet Résumé batteuse
A1: Poids batteuse sans le nez ni grain | B1: Batteuse 1 | E1: Poids batteuse sans le nez ni grain | F1: Batteuse 1
A2: Résumé | B2: Poids avec essence | C2: Poids à la roue/Chenille | E2: Résumé | F2: Poids avec essence | G2: Poids à la roue/Chenille
A3: Essieu avant | B3: 17588 | C3: 4397 | D3: /4 | E3: Essieu avant | F3: 17588 | G3: 4397
A4: Essieu arrière | B4: 9428 | C4: 4714 | D4: /2 | E4: Essieu arrière | F4: 9428 | G4: 4714
A5: Pneu essieu avant | E5: Pneu essieu avant
A7: Pneu essieu arriàre | E7: Pneu essieu arriàre
B8: Poids estimé avec essence et grain +nez | F8: Poids estimé avec essence et grain +nez
A9: Poids de la batteuse en charge avec le grain | B9: Poids total | C9: Poids à la roue/chenille | E9: Poids de la batteuse en charge avec le grain | F9: Poids total | G9: Poids à la roue/chenille
A10: Essieu avant | B10: 33630 | C10: 8408 | D10: /4 | E10: Essieu avant | F10: 33630 | G10: 8408
A11: Essieu arrière | B11: 10913 | C11: 5457 | D11: 2 | E11: Essieu arrière | F11: 10913 | G11: 5457
B13: Batteuse 2 | F13: Batteuse 2
A14: Poids batteuse sans le nez ni grain | B14: Poids avec essence | C14: Poids à la roue/Chenille | E14: Poids batteuse sans le nez ni grain | F14: Poids avec essence | G14: Poids à la roue/Chenille
A15: Résumé | B15: 21230 | C15: 5307.5 | D15: /4 | E15: Résumé | F15: 21230 | G15: 5307.5
A16: Essieu avant | B16: 8242 | C16: 4121 | D16: /2 | E16: Essieu avant | F16: 8242 | G16: 4121
A17: Essieu arrière | E17: Essieu arrière
A18: Pneu essieu avant | E18: Pneu essieu avant
A20: Pneu essieu arriàre | E20: Pneu essieu arriàre
B21: Poids estimé avec essence et grain +nez | F21: Poids estimé avec essence et grain +nez
A22: Poids de la batteuse en charge avec le grain | B22: Poids total | C22: Poids à la roue/chenille | E22: Poids de la batteuse en charge avec le grain | F22: Poids total | G22: Poids à la roue/chenille
A23: Essieu avant | B23: 37240 | C23: 9310 | D23: /4 | E23: Essieu avant | F23: 32530 | G23: 8133
A24: Essieu arrière | B24: 9593 | C24: 4797 | D24: /2 | E24: Essieu arrière | F24: 12013 | G24: 6007
A26: Poids batteuse sans le nez ni grain | B26: Batteuse 3 | E26: Poids batteuse sans le nez ni grain | F26: Batteuse 3
A27: Résumé | B27: Poids avec essence | C27: Poids à la roue/Chenille | E27: Résumé | F27: Poids avec essence | G27: Poids à la roue/Chenille
A28: Essieu avant | B28: 14514 | C28: 3628.5 | D28: /4 | E28: Essieu avant | F28: 14514 | G28: 3628.5
A29: Essieu arrière | B29: 12876 | C29: 6438 | D29: /2 | E29: Essieu arrière | F29: 12876 | G29: 6438
A30: Pneu essieu avant | E30: Pneu essieu avant
A32: Pneu essieu arriàre | E32: Pneu essieu arriàre
B33: Poids estimé avec essence et grain +nez | F33: Poids estimé avec essence et grain +nez
A34: Poids de la batteuse en charge avec le grain | B34: Poids total | C34: Poids à la roue/chenille | E34: Poids de la batteuse en charge avec le grain | F34: Poids total | G34: Poids à la roue/chenille
A35: Essieu avant | B35: 34458 | C35: 8615 | D35: /4 | E35: Essieu avant | F35: 37263 | G35: 9316
A36: Essieu arrière | B36: 13676 | C36: 6838 | D36: /2 | E36: Essieu arrière | F36: 12324 | G36: 6162

Sheet Poids-puissance
A2: Équilibrage du tracteur avec le rapport poids/HP
A26: Puissance du tracteur à la prise de force | C26: HP | D26: 200
D27: x | F27: 625 | G27: 6 | H27: =F27/G27 -> 104.1666667 | L27: Liste | M27: Avant/arrière
A28: Sélection du rapport de poids / puissance | C28: Lb/Hp | D28: 95 | F28: 22 | L28: 90 | M28: 25/75 | N28: 25
D29: ------- | F29: 45 | L29: 95 | M29: 30/70 | N29: 30
A30: Total de poids désiré | C30: Lbs | D30: =D26*D28 -> 19000 | F30: =F28*F29 -> 990 | L30: 100 | M30: 35/65 | N30: 35
L31: 105 | M31: 40/60 | N31: 40
A32: Sélectionner la répartition du poids avant arrière | C32: Avant | D32: 40 | E32: 40/60 | L32: 110 | M32: 55/45 | N32: 55
C33: Arrière | D33: =100-D32 -> 60 | L33: 115
B34: Kg | L34: 120
A35: Poids désiré | B35: =D35/2.2 -> 3454.545455 | C35: Avant | D35: =D30*D32/100 -> 7600 | E35: lbs | G35: 3450 | H35: 3400 | I35: 3030 | J35: 3680 | L35: 125
B36: =D36/2.2 -> 5181.818182 | C36: Arrière | D36: =D30*D33/100 -> 11400 | E36: lbs | G36: 2550 | H36: 2590 | I36: 2190 | J36: 2760 | L36: 130
G37: kg | H37: lb | J37: =J36*0.4 -> 1104 | L37: 135
A38: Poids initial | B38: =D38/2.2 -> 2727.272727 | C38: Avant | D38: 6000 | E38: lbs | F38: =D38/D40 -> 0.375 | G38: =SUM(G35:J35) -> 13560 | H38: =G38*2.2 -> 29832 | J38: =J36*0.6 -> 1656 | K38: =D38*2.2 -> 13200 | L38: 140
B39: =D39/2.2 -> 4545.454545 | C39: Arrière | D39: 10000 | E39: lbs | F39: =D39/D40 -> 0.625 | G39: =SUM(G36:J36) -> 10090 | H39: =G39*2.2 -> 22198 | K39: =D39*2.2 -> 22000 | L39: 145
B40: =D40/2.2 -> 7272.727273 | C40: Total | D40: =D38+D39 -> 16000 | E40: lbs
A42: Ajout de poids | B42: =D42/2.2 -> 545.4545455 | C42: Avant | D42: 1200 | E42: lbs
B43: =D43/2.2 -> 0 | C43: Arrière | E43: lbs
B44: =D44/2.2 -> 545.4545455 | C44: Total | D44: =D42+D43 -> 1200 | E44: lbs
A46: Poids ajouté | B46: =D46/2.2 -> 0 | C46: Avant | E46: lbs
B47: =D47/2.2 -> 909.0909091 | C47: Arrière | D47: 2000 | E47: lbs
B48: =D48/2.2 -> 909.0909091 | C48: Total | D48: =D46+D47 -> 2000 | E48: lbs
F49: Pourcentage
A50: Poids final | B50: =D50/2.2 -> 2727.272727 | C50: Avant | D50: =D38+D46 -> 6000 | E50: lbs | F50: =D50/D52 -> 0.3333333333
B51: =D51/2.2 -> 5454.545455 | C51: Arrière | D51: =D39+D47 -> 12000 | E51: lbs | F51: =D51/D52 -> 0.6666666667
B52: =D52/2.2 -> 8181.818182 | C52: Total | D52: =D50+D51 -> 18000 | E52: lbs | F52: =D52/D26 -> 90 | G52: lb/HP
A54: Nombre de pneus | C54: Avant | D54: 2 | E54: Avant | F54: =IF(D54=2,D50/2,IF(D54=4,D50/4/0.88,D50/6/0.82)) -> 3000 | G54: lbs | L54: 2
A55: Poids par pneu | C55: Arrière | D55: 2 | E55: Arrière | F55: =IF(D55=2,D51/2,IF(D55=4,D51/4/0.88,D51/6/0.82)) -> 6000 | G55: lbs | L55: 4
L56: 6

Sheet Références
A1: Conférence Nicolas Dubuc
A2: http://www.mapaq.gouv.qc.ca/SiteCollectionDocuments/Regions/Monteregie-Est/AV2011_2012/Conference_Nicolas_Dubuc.pdf
A3: Texte sur la compaction en anglais
A4: http://pubs.cas.psu.edu/freepubs/pdfs/uc186.pdf
A5: Conférence Roger Rivest
A6: http://www.mapaq.gouv.qc.ca/SiteCollectionDocuments/Regions/Monteregie-Est/AV2011_2012/Conference_Roger_Rivest.pdf
A7: Conférence sur la compaction
A8: http://www.agrireseau.qc.ca/agroenvironnement/documents/Tsague_La%20compaction%20des%20sols.pdf
A11: CPVQ CRAAQ, Problème de compaction
A12: http://www.agrireseau.qc.ca/agroenvironnement/documents/Feuillet7A.pdf
A13: Test Nébaska
A14: http://tractortestlab.unl.edu/testreports
A15: Ballasting tractors for fuel efficiency
A16: http://www.extension.iastate.edu/Publications/PM2089g.pdf
A18: Alliance (incluant Galaxy, version 2012):
A19: Pneus agricoles :
A20: http://www.atgtire.com/products-agriculture.aspx#
A21: Pneus de flottaison (épandeurs) :
A22: http://www.atgtire.com/images/brochures/ALLIANCE-Flotation-English-2012.pdf
A23: BKT (version 2008):
A24: http://www.american-omni.com/assets/pdf-tires/BKT-tires.pdf
A25: Continental (incluant Mitas, version 2011):
A26: http://www.cgs.eu/soubor.php?fid=919
A29: Firestone (version 2011):
A30: Dimensions impériales :
A31: http://www.firestoneag.com/webres/File/Inflation-Tables/TireInfo-LoadInflation-A.pdf
A32: Technologie IF :
A33: http://www.firestoneag.com/webres/File/Inflation-Tables/TireInfo-LoadInflation-C.pdf
A34: Michelin (version 2009):
A35: http://www.michelinag.com/content/download/2232/27690/version/1/file/Michelin_AG_DataBook.pdf
A36: Nokian (version 2012):
A37: http://www.nokianheavytyres.us/files/nht/technical_manual/NokianHeavyTyres_Technical_manual_04_Agricultural_20120403.pdf
A38: Titan (incluant Goodyear, version 2011):
A39: http://titan-intl.com/files/Agriculture/Ag_DatabookWeb.pdf

Sheet Charge
G3: Rapport de puissance | K3: Rapport poids puissance
G5: Vitesse | H5: 7 | I5: Milles/heure | K5: Vitesse | L5: =H5*1.6 -> 11.2 | M5: km/h
G7: Rapport | H7: =MIN(625/H5,146) -> 89.28571429 | I7: Lb/HP | K7: Rapport | L7: =H7/2.20462/0.7457 -> 54.31053629 | M7: kg/kW
H9: Max
G10: Articulé | H10: 105 | I10: Lb/HP
G11: AUTRES | H11: 145 | I11: Lb/HP
T60: hp= CKw | V60: 1 km/h= C m/h
T61: 0.745699872 | V61: 0.6213711922
T64: Vitesse | V64: Sols cohésifs | X64: Sols non cofésifs | Z64: Sols cohésifs | AB64: Sols non cofésifs
V65: 2 roues motrices ou 4 roeus motrice | Z65: 2 roues motrices ou 4 roeus motrice
V66: 2 | W66: 4 | X66: 2 | Y66: 4 | Z66: 2 | AA66: 4 | AB66: 2 | AC66: 4
T67: Mille/h | U67: Km/h | V67: kg/KW | W67: kg/KW | X67: kg/KW | Y67: kg/KW | Z67: Lb/Hp | AA67: Lb/Hp | AB67: Lb/Hp | AC67: Lb/Hp
T68: =ROUND(U68*$V$61,1) -> 7.5 | U68: 12 | V68: 55 | W68: 49 | X68: 61 | Y68: 55 | Z68: =ROUND(V68*2.2*$T$61,1) -> 90.2 | AA68: 80.4 | AB68: 100.1 | AC68: 90.2
T69: =ROUND(U69*$V$61,1) -> 6.2 | U69: 10 | V69: 61 | W69: 55 | X69: 73 | Y69: 67 | Z69: 100.1 | AA69: 90.2 | AB69: 119.8 | AC69: 109.9
T70: =ROUND(U70*$V$61,1) -> 5 | U70: 8 | V70: 73 | W70: 67 | X70: 85 | Y70: 79 | Z70: 119.8 | AA70: 109.9 | AB70: 139.4 | AC70: 129.6
T71: =ROUND(U71*$V$61,1) -> 4.3 | U71: 7 | V71: 91 | W71: 79 | X71: 104 | Y71: 97 | Z71: 149.3 | AA71: 129.6 | AB71: 170.6 | AC71: 159.1 | AD71: Max 145
S72: attention | T72: =ROUND(U72*$V$61,1) -> 3.1 | U72: 5 | V72: 122 | W72: 110 | X72: 140 | Y72: 134 | Z72: 200.1 | AA72: 180.5 | AB72: 229.7 | AC72: 219.8
Z74: 5

Sheet Balancement
B1: La réparation du poids du tracteur
B6: Tracteurs | C6: Trainé | D6: Semi-porté | E6: Porté
C7: Avant/arrière | D7: Avant/arrière | E7: Avant/arrière
B8: 2 roues | C8: 25 / 75 % | D8: 30 / 70 % | E8: 35 / 65%
B9: 2 + 2 | C9: 35 / 65 % | D9: 35 / 65 % | E9: 40 / 60 %
B10: 4 roues | C10: 55 / 45 % | D10: 55 / 45 % | E10: 60 / 40 %

Sheet Feuil1
J32: RSC
W37: RSC

Sheet tableau résumé
B1: Tracteur | D1: poids tracteur | J1: pneu avant | L1: pression | N1: pneu arrière | P1: pression | S1: Équipement | V1: si porté | W1: si semi porté | Z1: Trainé
B2: marque | C2: Modèle | D2: avant | E2: arrière | F2: ajout avant | G2: ajout roue avant | H2: ajout roue arrière | I2: ajout arrière | J2: intérieur | K2: extérieur | L2: intérieur | M2: extérieur | N2: intérieur | O2: extérieur | S2: type | T2: description | U2: largeur | V2: Poids | W2: poids sur essieu tracteur | X2: pneu | Y2: pression | Z2: Poids | AA2: Pneu | AB2: pression | AC2: Poids | AD2: Pneu | AE2: pression | AF2: Poids | AG2: Pneu | AH2: pression
D3: kg | E3: kg | F3: kg | G3: kg | H3: kg | I3: kg | J3: marge et cote de charge | L3: Psi | M3: Psi | N3: marge et cote de charge | P3: Psi | R3: no | V3: kg | X3: marque et côte | Y3: Psi | Z3: kg | AA3: marque et côte | AB3: Psi | AC3: kg | AD3: marque et côte | AE3: Psi | AF3: kg | AG3: marque et côte | AH3: Psi
A4: 1 | R4: 1 | S4: à vide
R5: 2
R6: 3
R7: 4
R8: 5
R9: 6
R10: 7
R11: 8
R12: 9
A14: 2 | R14: 1 | S14: à vide
R15: 2
R16: 3
R17: 4
R18: 5
R19: 6
R20: 7
R21: 8
R22: 9
A24: 3 | R24: 1 | S24: à vide
R25: 2
R26: 3
R27: 4
R28: 5
R29: 6
R30: 7
R31: 8
R32: 9
A34: 4 | R34: 1 | S34: à vide
R35: 2
R36: 3
R37: 4
R38: 5
R39: 6
R40: 7
R41: 8
R42: 9
A44: 5 | R44: 1 | S44: à vide
R45: 2
R46: 3
R47: 4
R48: 5
R49: 6
R50: 7
R51: 8
R52: 9
A54: 6 | R54: 1 | S54: à vide
R55: 2
R56: 3
R57: 4
R58: 5
R59: 6
R60: 7
R61: 8
R62: 9

Sheet calcul des réservoirs
B1: Réservoir | C1: Dm | E1: 6200 | G1: À vide | M1: Réservoir | O1: =C1 -> Dm | Q1: =E1 -> 6200 | R1: Plein
B2: Essieu | C2: 1 | E2: 2 | G2: 3 | J2: 4 | M2: Essieu | O2: 1 | Q2: 2 | R2: 3 | T2: 4
B3: =SUM(C3:J3) -> 9780 | C3: =C5+C6 -> 2260 | E3: =E5+E6 -> 2580 | G3: =G5+G6 -> 2460 | J3: =J5+J6 -> 2480 | M3: =SUM(O3:U3) -> 36157.0712 | O3: =O5+O6 -> 9039.267801 | Q3: =Q5+Q6 -> 9039.267801 | R3: =R5+R6 -> 9039.267801 | T3: =T5+T6 -> 9039.267801
B4: Total
B5: Gauche | C5: 1190 | E5: 1290 | G5: 1280 | J5: 1170 | M5: Gauche | O5: =V26/2 -> 4519.633901 | Q5: =O5 -> 4519.633901 | R5: =Q5 -> 4519.633901 | T5: =R5 -> 4519.633901
B6: Droit | C6: 1070 | E6: 1290 | G6: 1180 | J6: 1310 | M6: Droit | O6: =O5 -> 4519.633901 | Q6: =O6 -> 4519.633901 | R6: =Q6 -> 4519.633901 | T6: =R6 -> 4519.633901
B7: Poids sur le timon | E7: 560 | M7: Poids sur le timon | Q7: =V28 -> 2092.998699
B8: Poids total réservoir | E8: =B3+E7 -> 10340 | M8: Poids total | Q8: =M3+Q7 -> 38250.0699 | T8: =Q8-E8 -> 27910.0699 | V8: =T8-J10 -> 1137.342631
G10: Poids du liquide | J10: =J11/2.2 -> 26772.72727 | K10: kg | N10: Poids du tracteur à vide | R10: 11690 | S10: kg
E11: =E1*10 -> 62000 | F11: lb | J11: =E12 -> 58900 | K11: lb | N11: Poids du tracteur plein | R11: ='schéma tracteur'!B32 ->  | S11: kg
E12: =E11*G12 -> 58900 | G12: 0.95 | N12: Poids du liquide sur le timon | R12: =R11-R10 ->  | S12: kg
G13: % de remplissage | N13: Poids du liquide total Réservoir + timon | R13: =M3-B3+R12 ->  | S13: kg
Q16: Différence poids tracteur seul et à vide | V16: 560
B17: ESTIMATION | Q17: Poids du réservoir vide | V17: 9780
Q18: % timon | V18: =V16/V17 -> 0.0572597137
B19: Évaluation d'un réservoir
Q20: Poids sur le timon à vide | V20: 560 | W20: kg
Q21: Volume du réservoir | V21: 6200 | W21: gal can
Q22: Poids à 95% | V22: =V21*10*0.95 -> 58900 | W22: lb
V23: =V22/2.2 -> 26772.72727 | W23: kg
Q24: Poids à chaque essieu + 6% au timon | V24: =V23/4.06 -> 6594.267801 | W24: kg
Q25: Poids réservoir seul / essieu | V25: =B3/4 -> 2445
K26: 2.14 | M26: 1.7 | Q26: Poids total plein / essieu | V26: =V24+V25 -> 9039.267801 | W26: kg
J27: 3.92
H28: 5.75 | Q28: Poids timon plein | V28: =V16+V23*V18 -> 2092.998699 | W28: kg
G29: 7.5
E31: 8.42
H32: =E31+M26 -> 10.12
C53: 2 | D53: 2 | E53: 2 | F53: 2 | G53: 3 | H53: 3 | I53: 3 | J53: 3 | K53: 4 | L53: 4 | M53: 4
B54: Gal U.s. | C54: 4000 | D54: 4500 | E54: 5000 | F54: 5700 | G54: 5600 | H54: 6200 | I54: 6600 | J54: 7400 | K54: 8500 | L54: 9600 | M54: 10200
B55: Gal Imp. | C55: 3300 | D55: 3800 | E55: 4200 | F55: 4800 | G55: 4600 | H55: 5200 | I55: 5500 | J55: 6200 | K55: 7100 | L55: 8000 | M55: 8500
B56: Litres | C56: 15100 | D56: 17200 | E56: 18900 | F56: 21500 | G56: 21200 | H56: 23600 | I56: 25000 | J56: 28000 | K56: 32200 | L56: 36300 | M56: 38600
B57: Vide lb | C57: 14000 | D57: 14250 | E57: 15270 | F57: 15550 | G57: 19330 | H57: 19650 | I57: 20890 | J57: 21130 | K57: 27250 | L57: 27720 | M57: 28580
B58: Plein lb | C58: 47000 | D58: 52250 | E58: 57270 | F58: 65330 | G58: 65330 | H58: 81650 | I58: 75900 | J58: 82700 | K58: 88250 | L58: 107550 | M58: 113100
B59: Poids sur le timon (kg) | C59: =C58*9/100/2.2 -> 1922.727273 | D59: =D58*9/100/2.2 -> 2137.5 | E59: 2342.863636 | F59: 2672.590909 | G59: 2672.590909 | H59: 3340.227273 | I59: 3105 | J59: 3383.181818 | K59: 3610.227273 | L59: 4399.772727 | M59: 4626.818182
B60: Poids (kg) | C60: =C58/2.2-C59 -> 19440.90909 | D60: =D58/2.2-D59 -> 21612.5 | E60: 23688.95455 | F60: 27022.86364 | G60: 27022.86364 | H60: 33773.40909 | I60: 31395 | J60: 34207.72727 | K60: 36503.40909 | L60: 44486.59091 | M60: 46782.27273
B61: Poids approx. à la roue (kg) | C61: =C60/C53/2 -> 4860.227273 | D61: =D60/D53/2 -> 5403.125 | E61: 5922.238636 | F61: 6755.715909 | G61: 4503.810606 | H61: 5628.901515 | I61: 5232.5 | J61: 5701.287879 | K61: 4562.926136 | L61: 5560.823864 | M61: 5847.784091

Sheet % glissement
I4: L
F34: Nombre de tours | H34: 10
A35: Rayon statique chargé | C35: 800 | D35: mm | J35: 750 | K35: mm
A36: Circonférence pour 1 tour | C36: =C35*2*3.1416/1000 -> 5.02656 | D36: m | J36: =J35*2*3.1416/1000 -> 4.7124 | K36: m
A37: Distance pour x tours | C37: =C36*H34 -> 50.2656 | D37: m | J37: =J36*H34 -> 47.124 | K37: m
A38: Distance pour x tours au champ | C38: 40 | D38: m | J38: 46 | K38: m
A39: % de glissement | C39: =(C37-C38)/C38*100 -> 25.664 | D39: % | J39: =(J37-J38)/J38*100 -> 2.443478261 | K39: %

Sheet résumé tracteur
B1: Tracteur | D1: poids tracteur | J1: pneu avant | L1: pression | M1: pression | N1: pneu arrière | P1: pression | Q1: pression
B2: marque | C2: Modèle | D2: avant | E2: arrière | F2: ajout avant | G2: ajout roue avant | H2: ajout roue arrière | I2: ajout arrière | J2: intérieur | K2: extérieur | L2: intérieur | M2: extérieur | N2: intérieur | O2: extérieur
D3: kg | E3: kg | F3: kg | G3: kg | H3: kg | I3: kg | J3: marque et indice de charge | L3: Psi | M3: Psi | N3: marrque et indice de charge | P3: Psi | Q3: Psi
A4: 1
A14: 2
A24: 3
A34: 4
A44: 5
A54: 6

Sheet résumé machinerie
B1: Tracteur | E1: Équipement | H1: si porté | I1: si semi porté | L1: Trainé
B2: marque | C2: Modèle | E2: type | F2: description | G2: largeur | H2: Poids | I2: poids sur essieu tracteur | J2: pneu | K2: pression | L2: Poids | M2: Pneu | N2: pression | O2: Poids | P2: Pneu | Q2: pression | R2: Poids | S2: Pneu | T2: pression
D3: no | H3: kg | J3: marque et côte | K3: Psi | L3: kg | M3: marque et côte | N3: Psi | O3: kg | P3: marque et côte | Q3: Psi | R3: kg | S3: marque et côte | T3: Psi
A4: 1 | D4: 1 | E4: à vide
D5: 2
D6: 3
D7: 4
D8: 5
D9: 6
D10: 7
D11: 8
D12: 9
A14: 2 | D14: 1 | E14: à vide
D15: 2
D16: 3
D17: 4
D18: 5
D19: 6
D20: 7
D21: 8
D22: 9
A24: 3 | D24: 1 | E24: à vide
D25: 2
D26: 3
D27: 4
D28: 5
D29: 6
D30: 7
D31: 8
D32: 9
A34: 4 | D34: 1 | E34: à vide
D35: 2
D36: 3
D37: 4
D38: 5
D39: 6
D40: 7
D41: 8
D42: 9
A44: 5 | D44: 1 | E44: à vide
D45: 2
D46: 3
D47: 4
D48: 5
D49: 6
D50: 7
D51: 8
D52: 9
A54: 6 | D54: 1 | E54: à vide
D55: 2
D56: 3
D57: 4
D58: 5
D59: 6
D60: 7
D61: 8
D62: 9

Sheet Impression
A1: Données physiques | D1: =IF('schéma tracteur'!F1="","",+'schéma tracteur'!F1) ->  | E1: Données calculées
A2: Puissance Hp | B2: P | H2: =IF(C2="","",+C2*0.746) -> 
A3: Données arrière | D3: Plein
A4: Empattement (m) | B4: a
A5: Poids arrière (kg) | B5: b | D5: =IF(C2="","",+'schéma tracteur'!J34) ->  | Q5: 3000 | R5: =H14 ->  | S5: =R5/R7*100 -> 
A6: Poids roues (kg) | B6: c | D6: =IF(C2="","",+'schéma tracteur'!J18) ->  | H6: Vide | J6: Plein | R6: =H7 ->  | S6: =R6/R7*100 -> 
E7: Poids arrière (kg) | F7: d | G7: = b + c | H7: =IF(C2="","",+C5+C6) ->  | J7: =IF(D5="","",D5+D6) ->  | R7: =R5+R6 -> 
A8: Poids déporté (kg) | B8: e
A9: déportance (m) | B9: f | S9: 35
A10: Poids déporté à vide | B10: e1 | J10: =H11 ->  | S10: 65
A11: Données avant | E11: Rapport arrière | F11: g | G11: = f / a | H11: =IF(C2="","",+C9/C4) ->  | R11: =R5+Q5 ->  | S11: =R11/R13*100 -> 
A12: Poids avant (kg) | B12: h | D12: =IF(C2="","",+'schéma tracteur'!T34) ->  | R12: =R6 ->  | S12: =R12/R13*100 -> 
A13: Poids roues (kg) | B13: i | D13: =IF(C2="","",+'schéma tracteur'!T22) ->  | R13: =R11+R12 -> 
E14: Poids avant (kg) | F14: j | G14: = i +h | H14: =IF(C2="","",+C12+C13) ->  | J14: =IF(D12="","",D12+D13) -> 
A15: Poids déporté (kg) | B15: k | R15: =R5 ->  | S15: 1 | T15: 1
A16: déportance (m) | B16: l | T16: 0.35
E17: rapport avant | F17: m | G17: = l / a | H17: =IF(C2="","",+C16/C4) ->  | I17: =H20-H21 ->  | J17: =H17 -> 
E18: Calcul du poids de transfert avant et arrière | I18: à vide | K18: à vide
E19: Poids en moins sur les roues arrière (kg) | F19: q | G19: = k * m | H19: =IF(C2="","",+C15*H17) ->  | J19: =IF(C2="","",+C15*J17) -> 
E20: Poids en plus sur les roues arrière (kg) | F20: r | G20: = e + ( e * g ) | H20: =IF(C2="","",+C8+(C8*H11)) ->  | I20: =IF(C2="","",+C10+(C10*H11)) ->  | J20: =IF(C2="","",+C8+(C8*J10)) ->  | K20: =IF(C2="","",+C10+(C10*H11)) -> 
E21: Poids en moins sur les roues avant (kg) | F21: s | G21: = e * g | H21: =IF(C2="","",+C8*H11) ->  | I21: =IF(C2="","",+C10*H11) ->  | J21: =IF(C2="","",+C8*J10) ->  | K21: =IF(C2="","",+C10*H11) -> 
E22: Poids en plus sur les roues avant (kg) | F22: t | G22: = k + ( k * m ) | H22: =IF(C2="","",+C15+(C15*H17)) ->  | J22: =IF(C2="","",+C15+(C15*J17)) -> 
E23: Calcul du poids et de la répartition
E24: Poids total arrière (kg) | F24: u | G24: = d + r - q | H24: =IF(C2="","",+H7+H20-H19) ->  | I24: =IF(C2="","",+H7+I20-H19) ->  | J24: =IF(J7="","",+J7+J20-J19) ->  | K24: =IF(J7="","",+J7+K20-J19) -> 
E25: Poids total avant (kg) | F25: v | G25: = j + t - s | H25: =IF(C2="","",+H14+H22-H21) ->  | I25: =IF(C2="","",+H14+H22-I21) ->  | J25: =IF(J14="","",+J14+J22-J21) ->  | K25: =IF(J14="","",+J14+J22-K21) -> 
E26: Poids total (kg) | F26: w | G26: = u + v | H26: =IF(C2="","",+H24+H25) ->  | I26: =IF(C2="","",I24+I25) ->  | J26: =IF(J24="","",+J24+J25) ->  | K26: =IF(J24="","",K24+K25) -> 
E27: Répartition arrière | F27: x | G27: = u / w * 100 | H27: =IF(C2="","",+H24/H26*100) ->  | I27: =IF(C2="","",+I24/I26*100) ->  | J27: =IF(J24="","",+J24/J26*100) ->  | K27: =IF(J24="","",+K24/K26*100) -> 
E28: Répartition avant | F28: y | G28: = v / w * 100 | H28: =IF(C2="","",+H25/H26*100) ->  | I28: =IF(C2="","",+I25/I26*100) ->  | J28: =IF(J24="","",+J25/J26*100) ->  | K28: =IF(J24="","",+K25/K26*100) -> 
E29: Charge/puissance (kg/Hp) | F29: z | G29: = w / p | H29: =IF(C2="","",+H26/C2) ->  | J29: =IF(J24="","",+J26/C2) -> 
E30: Charge/puissance (lb/Hp) | F30: z1 | G30: = z * 2,2 | H30: =IF(C2="","",+H29*2.2) ->  | J30: =IF(J24="","",+J29*2.2) -> 
A31: Constante R pour calculer la charge par pneu
A32: 1) Si roue simple | C32: 2
A33: 2) Si roue double | C33: 4 / 0,88
A34: 3) Si roue triple | C34: 6 / 0,82 | E34: Calcul du poids par pneu | M34: 1
A35: Choix avant | B35: =IF(A44="simple",1,IF(A44="double",2,3)) -> 1 | E35: Poids par pneu arrière (kg) | F35: Poids arr | G35: = u / R | H35: =IF(C2="","",IF(B36=1,H24/2,IF(B36=2,H24/4/0.88,H24/6/0.82))) ->  | J35: =IF(J24="","",IF(B36=1,J24/2,IF(B36=2,J24/4/0.88,J24/6/0.82))) ->  | M35: 2
A36: Choix arrière | B36: =IF(A45="simple",1,IF(A45="double",2,3)) -> 1 | E36: Poids par pneu avant (kg) | F36: Poids avant | G36: = v / R | H36: =IF(C2="","",IF(B35=1,H25/2,IF(B35=2,H25/4/0.88,H25/6/0.82))) ->  | I36: =IF(C2="","",IF(B35=1,I25/2,IF(B35=2,I25/4/0.88,I25/6/0.82))) ->  | J36: =IF(J24="","",IF(B35=1,J25/2,IF(B35=2,J25/4/0.88,J25/6/0.82))) ->  | K36: =IF(J24="","",IF(B35=1,K25/2,IF(B35=2,K25/4/0.88,K25/6/0.82))) ->  | M36: 3
F37: Aller dans une charte avec ce poids et la vitesse d'opération pour trouver la pression du pneu
E38: Vérification dans les chartes de compagnies de la pression et du rayon mimimum chargé
E39: Pression arrière psi ou kPa | F39: ='schéma tracteur'!K50 -> 0
E40: Pression avant psi ou kPa | F40: ='schéma tracteur'!V50 -> 0
E41: Rayon minimum chargé arrière | F41: ='schéma tracteur'!M50 -> 0
E42: Rayon minimum chargé avant | F42: ='schéma tracteur'!W50 -> 0
A44: ='schéma tracteur'!Y21 -> Simple | B44: av
A45: ='schéma tracteur'!E25 -> Simple | B45: ar
E60: Données calculées
E61: Poids arrière (kg) | F61: d | G61: = b + c
E62: Rapport arrière | F62: g | G62: = f / a
E63: Poids avant (kg) | F63: j | G63: = i +h
E64: Rapport avant | F64: m | G64: = l / a
E65: Calcul du poids de transfert avant et arrière
E66: Poids en moins sur les roues arrière (kg) | F66: q | G66: = k * m
E67: Poids en plus sur les roues arrière (kg) | F67: r | G67: = e + ( e * g )
E68: Poids en moins sur les roues avant (kg) | F68: s | G68: = e * g
E69: Poids en plus sur les roues avant (kg) | F69: t | G69: = k + ( k * m )
E70: Calcul du poids et de la répartition
E71: Poids total arrière (kg) | F71: u | G71: = d + r - q
E72: Poids total avant (kg) | F72: v | G72: = j + t - s
E73: Poids total (kg) | F73: w | G73: = u + v
E74: Répartition arrière | F74: x | G74: = u / w * 100
E75: Répartition avant | F75: y | G75: = v / w * 100
E76: Charge/puissance (kg/Hp) | F76: z | G76: = w / p
E77: Charge/puissance (lb/Hp) | F77: z1 | G77: = z * 2,2
E78: Calcul du poids par pneu
E79: Poids par pneu arrière (kg) | F79: Poids arr | G79: = u / R
E80: Poids par pneu avant (kg) | F80: Poids avant | G80: = v / R
F81: Aller dans une charte avec ce poids et la vitesse d'opération pour trouver la pression du pneu
E82: Vérification dans les chartes de compagnies de la pression et du rayon mimimum chargé
E83: Pression arrière psi ou kPa
E84: Pression avant psi ou kPa
E85: Rayon minimum chargé arrière
E86: Rayon minimum chargé avant
